{"text_format":"3","workbook":"xlsx","n_sheets":24,"sheets":["FFGym Clubs","Evolution Tumbling avant","Evolution Tumbling arrière","Détente Tumbling Mixte","Evolution MT - MT","Découverte Tumbling avant","Découverte Tumbling arrière","Détente Tumbling avant","Détente Tumbling arrière","Découverte MT - MT","Détente MT - Saut","ListeDiffSol","Détente MT - MT","ListeClubs 95 ","liste","Activer Macro 97-2003","Activer Macro2007","SOL Explications","Explications","fiche engagement","FED Dif Sol","PERF Dif Sol","dif tumbling","dif mini tramp"],"not_rendered":{"images":11,"macros":1,"external_links":1,"defined_names":43},"read":"whole","date_system":"1900"}

{"sheet":"FFGym Clubs","index":0,"n_rows":257,"n_cols":4,"rows_kept":257,"hidden":true}
["Nom","Number","Numéro d'affiliation","Ville"]
[null,0]
["1-CLUB INTROUVABLE ",1,"00000.000","INCONNUE"]
["A S C A",2,"52072.054","LA CHAPELLE ST-AUBIN"]
["A S COURONNAISE ",3,"28076.027","PETIT COURONNE"]
["A.S.P.C. GYM'SPORT",4,"52049.082","LES PONTS DE CE"]
["ABBEVILLE GYM",5,"32080.065","ABBEVILLE"]
["AC CHAPELAIN",6,"52044.061","LA CHAPELLE SUR ERDRE"]
["ACR GYM",7,"24041.061","ROMORANTIN"]
["ACRO TRAMP SAINT MAXIMIN SEILLONS",8,"93083.110","SAINT MAXIMIN LA SAINTE BAUME - SEILLONS "]
["ACRO VOLTIGE",9,"52085.103","LUCON"]
["AERO GYM BRIE",10,"11077.178","BRIE COMTE ROBERT"]
["AGM GYM VESOUL",11,"27070.055","VESOUL"]
["ALBONAISE GYMNASTIQUE DE FRANCONVILLE",12,"11095.301","FRANCONVILLE"]
["ALLIANCE TOURQUENNOISE DE GYMNASTIQUE",13,"32059.254","TOURCOING"]
["AMICALE LAIQUE IRIGNY",14,"84069.189","IRIGNY"]
["AMICALE LAIQUE JEUNES FILLES DE ROANNE",15,"84042.014","ROANNE"]
["AMICALE LAIQUE JULES FERRY",16,"84001.021","AMBERIEU EN BUGEY"]
["AMICALE LAIQUE P.BROSSOLETTE VANDOEUVRE",17,"44054.009","VANDOEUVRE"]
["AMICALE LAÏQUE REDON",18,"53035.001","REDON"]
["AMICALE LAIQUE VOIRON",19,"84038.027","VOIRON"]
["ANGERS GYMNASTIQUE",20,"52049.077","ANGERS"]
["ASS. SPORTIVE FOURCHAMBAULT",21,"27058.063","FOURCHAMBAULT"]
["ASS. SPORTIVE GUERIGNY URZY",22,"27058.005","GUERIGNY"]
["ASS.SPORT.UNION CHEMINOTTE",23,"27089.075","MIGENNES"]
["ASSOCIATION GRAINES D'ACROBATES",24,"03973.001","SAINT-LAURENT DU MARONI"]
["ASSOCIATION GYMNIQUE  LOUDUNAISE",25,"75086.034","LOUDUN"]
["ASSOCIATION GYMNIQUE BREUILLETOISE",26,"11091.135","BREUILLET"]
["ASSOCIATION GYMNIQUE CHAUVINOISE",27,"75086.072","CHAUVIGNY"]
["ASSOCIATION GYMNIQUE DE CESSON VERT ST DENIS",28,"11077.130","CESSON VERT SAINT DENIS"]
["ASSOCIATION GYMNIQUE DE PLOUGASTEL",29,"53029.086","PLOUGASTEL"]
["ASSOCIATION GYMNIQUE PERPIGNANAISE",30,"76066.053","PERPIGNAN"]
["ASSOCIATION LES PITCHOUNS DE CARCES",31,"93083.101","CARCES"]
["ASSOCIATION SPORTIVE DE LA JEUNESSE ONZAINOISE",32,"24041.076","ONZAIN"]
["ASSOCIATION SPORTIVE ET CULTURELLE PESSAC ALOUETTE",33,"75033.010","PESSAC ALOUETTE"]
["Association Sportive Fleurance Gym",34,"76032.084","FLEURANCE"]
["ASSOCIATION SPORTIVE GYMNIQUE VILLENAVE D'ORNON",35,"75033.014","VILLENAVE D'ORNON"]
["ASSOCIATION SPORTIVE ILLACAISE",36,"75033.069","ST JEAN D'ILLAC"]
["ASSOCIATION SPORTIVE LE HAILLAN GYM",37,"75033.018","LE HAILLAN"]
["ASSOCIATION SPORTIVE LES TAMARIS",38,"24045.068","SAINT JEAN DE BRAYE"]
["ASSOCIATION SPORTIVE MONTFERRANDAISE",39,"84063.002","CLERMONT-FD"]
["ASSOCIATION SPORTIVE ST MEDARD EN JALLES",40,"75033.017","ST MEDARD EN JALLES"]
["AVANT GARDE ALBERTVILLE",41,"84073.042","ALBERTVILLE"]
["AVANT GARDE CAENNAISE",42,"28014.137","CAEN"]
["AVANT GARDE DE TERVES",43,"75079.022","TERVES"]
["AVANT GARDE DU MANS",44,"52072.041","LE MANS"]
["AVANT GARDE TAIN TOURNON",45,"84026.008","TAIN TOURNON"]
["AVENIR DE ROMANS",46,"84026.003","ROMANS"]
["AVENIR DU HOULME",47,"28076.016","LE HOULME"]
["AVENIR EVIANAIS",48,"84074.041","EVIAN"]
["AVENIR GESSIEN DE THOIRY",49,"84001.062","THOIRY"]
["AVENIR GYM COTE D'AZUR",50,"93006.110","NICE"]
["AVENIR GYMNASTIQUE ARTISTIQUE LAVANDOU BORMES",51,"93083.025","LE LAVANDOU"]
["AVENIR GYMNIQUE ORANGEOIS",52,"93084.132","ORANGE"]
["BASTIA TEAM GYM",53,"94020.022","BASTIA"]
["BEAUSEJOUR LES SABLES",54,"52085.018","LES SABLES D'OLONNE"]
["BELFORT GYMNASTIQUE",55,"27090.027","BELFORT"]
["BROCELI'GYM MONTFORT",56,"53035.167","MONTFORT SUR MEU"]
["CABRI MELLOIS",57,"75079.037","MELLE"]
["CARCASSONNE OLYMPIQUE SECTION GYMNASTIQUE",58,"76011.002","CARCASSONNE"]
["CAVIGAL NICE SPORTS",59,"93006.002","NICE"]
["CERCLE D EDUCATION PHYSIQUE GYM POITIERS",60,"75086.017","POITIERS"]
["CERCLE JULES FERRY",61,"53035.002","SAINT-MALO"]
["CERCLE PAUL BERT",62,"53035.009","RENNES"]
["CERCLE SPORTIF LAIC",63,"27071.021","SAINT VALLIER"]
["CLUB ATHLETIQUE BEGLAIS",64,"75033.002","BEGLES"]
["CLUB ATHLETIQUE COMBS LA VILLE GYMNASTIQUE",65,"11077.128","COMBS LA VILLE"]
["CLUB COMITE REGIONAL DU CENTRE-VAL DE LOIRE DE GYMNASTIQUE ",66,"24045.000","OLIVET "]
["CLUB DE GYMNASTIQUE DE HERMES",67,"32060.086","HERMES"]
["CLUB DE GYMNASTIQUE DE SERIGNAN",68,"76034.128","SERIGNAN"]
["CLUB DE GYMNASTIQUE ST-ANDREEN",69,"04974.014","SAINT-ANDRE"]
["CLUB DEPARTEMENTAL DE GYMNASTIQUE GIRONDE",70,"75033.074","BORDEAUX"]
["CLUB GROUP'OMNISPORT de ST JULIEN L'ARS",71,"75086.031","SAINT JULIEN L'ARS"]
["CLUB GYMNIQUE DE BONNEVEINE MARSEILLE",72,"93013.019","MARSEILLE"]
["CLUB GYMNIQUE DE LASSIGNY",73,"32060.068","LASSIGNY"]
["CLUB GYMNIQUE DE NEUILLY SUR MARNE",74,"11093.341","NEUILLY SUR MARNE"]
["CLUB GYMNIQUE DE SAINT PIERRE REUNION",75,"04974.012","SAINT-PIERRE"]
["CLUB GYMNIQUE ERMONT",76,"11095.300","ERMONT"]
["CLUB GYMNIQUE LANNION",77,"53022.043","LANNION"]
["CLUB GYMNIQUE RILLIEUX",78,"84069.051","RILLIEUX LA PAPE"]
["CLUB GYMNIQUE SAINT MAXIMINOIS",79,"93083.024","ST MAXIMIN LA STE BAUME"]
["CLUB L'ISLOIS DE GYMNASTIQUE",80,"93084.064","L ISLE SUR LA SORGUE"]
["CLUB MARIGNANAIS DES SPORTS DE GYMNASTIQUE",81,"93013.001","MARIGNANE"]
["CLUB OLYMPIQUE PACEEN",82,"53035.046","PACE"]
["CLUB SPORTIF ARTISTIQUE DE LA DEFENSE - CHATELLERAULT",83,"75086.009","CHATELLERAULT"]
["CLUB SPORTIF ET ATHLETIQUE DU KREMLIN BICETRE",84,"11094.567","KREMLIN BICETRE"]
["CLUB SPORTIF MUNICIPAL DE GYMNASTIQUE EPINAY SOUS SENART",85,"11091.104","EPINAY SOUS SENART"]
["CLUB SPORTIF VILLEPINTE GYMNASTIQUE",86,"11093.363","VILLEPINTE"]
["COQUELICOT TOULOUSE GYM",87,"76031.012","TOULOUSE"]
["DIJON GYM' ART",88,"27021.098","DIJON"]
["DINARD-GYM",89,"53035.120","DINARD"]
["DRAVEIL TEAM TUMBLING - GYMNASTIQUE",90,"11091.183","DRAVEIL"]
["E. S. M. G-O",91,"28076.067","GONFREVILLE L.ORCHER"]
["E.S.M. GYM CHALLANS",92,"52085.048","CHALLANS"]
["EAST FRANCE TEAMGYM",93,"44068.154","RIBEAUVILLE"]
["ELAN GYMNIQUE DE BLAGNAC",94,"76031.049","BLAGNAC"]
["ELAN GYMNIQUE DE SEVRAN",95,"11093.347","SEVRAN"]
["EN AVANT ! DE PARIS",96,"11075.004","PARIS"]
["ENFANTS DU REVARD AIX LES BAINS",97,"84073.037","AIX LES BAINS"]
["ENTENTE FAMILIALE OMNISPORT ROYALLIEU COMPIEGNE",98,"32060.031","COMPIEGNE"]
["ENTENTE GYMNIQUE DEODATIENNE",99,"44088.092","SAINT DIE DES VOSGES"]
["ENTENTE GYMNIQUE ETAMPES - SECTION GYMNASTIQUE",100,"11091.105","ETAMPES"]
["ENTENTE GYMNIQUE GANNATOISE",101,"84003.077","GANNAT"]
["ENTENTE GYMNIQUE LA ROSE BLEUE",102,"76030.042","BAGNOLS SUR CEZE"]
["ENTENTE GYMNIQUE PIERRELATTE",103,"84026.006","PIERRELATTE"]
["ENTENTE GYMNIQUE SAVIGNEUX MONTBRISON",104,"84042.113","MONTBRISON"]
["ENTENTE NOTRE DAME DU MONT",105,"93013.097","MARSEILLE"]
["ENTENTE SPORTIVE DE BRUGES",106,"75033.012","BRUGES"]
["ENTENTE SPORTIVE FALAISIENNE GYMNASTIQUE",107,"28014.193","FALAISE"]
["ENTENTE SPORTIVE GUYANCOURTOISE DE GYMNASTIQUE",108,"11078.040","GUYANCOURT"]
["ENTENTE SPORTIVE NOGENTAISE GYM",109,"24028.079","NOGENT LE ROI"]
["ESPERANCE CHARTRES BRETAGNE",110,"53035.083","CHARTRES DE BRETAGNE"]
["ESPERANCE DE FONTENAY SOUS BOIS",111,"11094.564","FONTENAY SOUS BOIS"]
["ESPERANCE DE VIGNEUX",112,"11091.118","VIGNEUX"]
["ESPERANCE MONTATAIRE",113,"32060.013","MONTATAIRE"]
["ESPERANCE ST LEGER GYMNASTIQUE",114,"27058.006","ST LEGER DES VIGNES"]
["ESPERANCE ST-GERMANOISE",115,"84003.053","ST GERMAIN DES FOSSÉS"]
["ETOILE BALGENTIENNE",116,"24045.066","BEAUGENCY"]
["ETOILE GOUSSAINVILLOISE",117,"11095.303","GOUSSAINVILLE"]
["ETOILE GYMNIQUE DE COLOMIERS",118,"76031.035","COLOMIERS"]
["ETOILE SAINT AMANDOISE",119,"24018.003","SAINT AMAND MONTROND"]
["ETOILE SPORTIVE ST MARCELLOISE SUD MINERVOIS",120,"76011.015","SAINT MARCEL"]
["EVASION SPORTIVE ET CULTURELLE PAR L.ANIMATION ET LES LOISIRS GYMNIQUES",121,"28076.177","ROUEN"]
["EVOLUTION MORTEAU",122,"27025.014","MORTEAU"]
["FEMINA MONTARGIS",123,"24045.037","MONTARGIS"]
["FEMINA SPORTS DE MONACO",124,"93098.008","MONACO"]
["FLAMBOYANT GYM CLUB",125,"99990.002","NOUMEA"]
["FOIX ATHLETIC CLUB",126,"76009.001","FOIX"]
["GINNASTICA CORSU DI U PAESE AIACCINU",127,"94020.021","AJACCIO"]
["GIVRE EN MAI",128,"75079.024","SAINT SAUVEUR DE GIVRE EN MAI"]
["GROUPE OMNISPORT LORIOL",129,"84026.036","LORIOL"]
["GROUPEMENT GYMNIQUE HAVRE BANLIEUE",130,"28076.073","LE HAVRE"]
["GYM 2000 LA FARLEDE",131,"93083.088","LA FARLEDE"]
["GYM CLUB DE LECOUSSE",132,"53035.117","LECOUSSE"]
["GYM CLUB DU PERREUX",133,"11094.584","LE PERREUX"]
["GYM CLUB NUEIL LES AUBIERS",134,"75079.053","NUEIL LES AUBIERS"]
["GYM CLUB POSSESSION",135,"04974.008","LA POSSESSION"]
["GYM CLUB SUZERAIN",136,"52072.011","LA SUZE SUR SARTHE"]
["GYM OLERON",137,"75017.051","SAINT PIERRE D OLERON"]
["GYM OLIVET",138,"24045.038","OLIVET"]
["GYM' PARIS 15",139,"11075.046","PARIS"]
["GYM SPORT PAM",140,"44054.005","PONT A MOUSSON"]
["GYMNASE MUNICIPAL DE ST VALLIER",141,"84026.004","ST VALLIER"]
["GYMNASTE CLUB DE MANDELIEU LA NAPOULE",142,"93006.076","MANDELIEU LA NAPOULE"]
["GYMNASTES DE L'EGRAY",143,"75079.062","CHAMPDENIERS"]
["GYMNASTIQUE ARTISTIQUE L'ARBRESLE",144,"84069.180","ARBRESLE"]
["GYMNASTIQUE CLUB DE WISSOUS",145,"11091.131","WISSOUS"]
["GYMNASTIQUE CLUB LA ROCHE SUR YON",146,"52085.099","ROCHE SUR YON"]
["GYMNASTIQUE CLUB MENNECY",147,"11091.152","MENNECY"]
["GYMNASTIQUE DU PAYS D'AIX EN PROVENCE",148,"93013.166","AIX EN PROVENCE"]
["GYMNASTIQUE LUNEROISE",149,"24018.043","LUNERY"]
["GYMNASTIQUE SODOBRIENNE DE SUEVRES",150,"24041.077","SUEVRES"]
["HYERES GYM",151,"93083.031","HYERES"]
["ILETS SPORTS MONTLUCONNAIS",152,"84003.031","MONTLUÇON"]
["IMPULSION GYM",153,"75079.088","ST MARTIN DE BERNEGOUE"]
["INDEPENDANTE COMTOISE BESANCON GYMNASTIQUE",154,"27025.008","BESANÇON"]
["INDEPENDANTE KINGERSHEIM",155,"44068.037","KINGERSHEIM"]
["INDEPENDANTE STEPHANOISE",156,"84042.025","ST ETIENNE"]
["ISSOLDUNOISE",157,"24036.004","ISSOUDUN"]
["KAN-KOUROU",158,"03973.002","KOUROU"]
["KEWENN GYMNASTIQUE",159,"53056.160","QUEVEN"]
["L OLYMPIQUE GRANDE SYNTHE",160,"32059.098","GRANDE SYNTHE"]
["LA BELLERIVOISE",161,"84003.024","BELLERIVE SUR ALLIER"]
["LA BIGOURDANE TARBES",162,"76065.023","TARBES"]
["LA BLESOISE",163,"24041.030","BLOIS"]
["LA BOURBONNAISE",164,"84003.032","MOULINS"]
["LA CELLE SAINT CLOUD GYM",165,"11078.003","LA CELLE SAINT CLOUD"]
["LA CHAUMONTAISE",166,"44052.025","CHAUMONT"]
["LA COGNACAISE",167,"75016.003","COGNAC"]
["LA FONTENAISIENNE",168,"52085.013","FONTENAY LE COMTE"]
["LA FRANCAISE DE CUSSET",169,"84003.026","CUSSET"]
["LA FRATERNELLE",170,"28027.042","LOUVIERS"]
["LA FRATERNELLE D'OUTREAU",171,"32062.155","OUTREAU"]
["LA FRONTIERE DE REMIREMONT",172,"44088.047","REMIREMONT"]
["LA GAULOISE MOZAC",173,"84063.014","MOZAC"]
["LA JEANNE D'ARC DE MAURIAC",174,"84015.033","MAURIAC"]
["LA JEANNE D'ARC DE PLOMBIERES",175,"44088.095","PLOMBIERES"]
["LA JULIANA NOMEXY",176,"44088.089","NOMEXY"]
["LA LEGERE MELINOISE",177,"27070.026","ECHENOZ LA MELINE"]
["LA NANTAISE",178,"52044.012","NANTES"]
["LA ROCHEFORTAISE",179,"75017.006","ROCHEFORT SUR MER"]
["LA ROCHELAISE ET FRATERNELLE REUNIES",180,"75017.005","LA ROCHELLE"]
["LA SEREINE DE ST ANDRE DE CORCY",181,"84001.159","ST ANDRE DE CORCY"]
["LA SEREINE GYMNASTIQUE MONTLUEL",182,"84001.063","MONTLUEL"]
["LA TONNACQUOISE GYMNASTIQUE",183,"75017.081","TONNAY CHARENTE"]
["LA VAILLANTE CHATILLONNAISE",184,"84001.047","CHATILLON S/CHALARONNE"]
["LA VAILLANTE DE LANGON",185,"75033.006","LANGON"]
["LA VOLT'AIRE AIRVAULT",186,"75079.048","AIRVAULT"]
["LA VOSGIENNE EPINAL",187,"44088.026","EPINAL"]
["LE STADE PESSACAIS UNION CLUB",188,"75033.005","PESSAC"]
["L'ELAN GYMNIQUE DE COURBEVOIE",189,"11092.246","COURBEVOIE"]
["L'ENVOL DE ROMAINVILLE",190,"11093.390","ROMAINVILLE"]
["L'ENVOL SAINT-GAUDINOIS",191,"76031.073","ST GAUDENS"]
["LEO LAGRANGE",192,"52044.069","NANTES"]
["LES ALCYONS",193,"52085.001","ST-GILLES CROIX DE VIE"]
["LES ALLOBROGES NIMOIS",194,"76030.021","NIMES"]
["LES ECUREUILS CRITOURIENS",195,"76009.010","LA TOUR DU CRIEU"]
["LES ECUREUILS DE SAINT PRIX",196,"11095.330","SAINT PRIX"]
["LES ETERLOUS",197,"27039.054","SAINT CLAUDE"]
["LES JEUNES DU CAPTALAT LA TESTE",198,"75033.009","LA TESTE"]
["LES LUCIOLES DE LYON",199,"84069.061","LYON"]
["LES MOUETTES DE ROYAN",200,"75017.083","ROYAN"]
["LES PATRIOTES AGENAIS",201,"75047.126","AGEN"]
["LES PETITES POINTES GYMNASTIQUE",202,"75017.086","SAINT DENIS D'OLERON"]
["LICENCES INDIVIDUELLES FFG",203,"40995.000","PARIS"]
["LORRAINE GYMNASTIQUE LUNEVILLE",204,"44054.006","LUNEVILLE"]
["L'UNION D'AY",205,"44051.020","AY"]
["L'UNION des GYMNASTES NIORTAIS",206,"75079.090","NIORT"]
["L'UNION GYM",207,"76031.097","L'UNION"]
["L'UNION SPORTIVE TALENCAISE GYMNASTIQUE",208,"75033.004","TALENCE"]
["METZ - GYM",209,"44057.169","METZ"]
["MONT SAINT AIGNAN GYMNASTIQUE AUX AGRES",210,"28076.165","MONT SAINT AIGNAN"]
["MONTIGNY LE BRETONNEUX GYMNASTIQUE",211,"11078.013","MONTIGNY LE BRETONNEUX"]
["MORLAIX SAINT POL GYMNASTIQUE",212,"53029.010","MORLAIX"]
["MUNICIPALE CONDOM",213,"76032.016","CONDOM"]
["NEUVILLE GYM",214,"84069.091","NEUVILLE S/SAONE"]
["NICE GYM",215,"93006.099","NICE"]
["OLYMPIQUE CLUB CESSONAIS",216,"53035.161","CESSON SEVIGNE"]
["PATRIOTE COOP",217,"75087.001","LIMOGES"]
["PATRONAGE LAIQUE AURAY",218,"53056.016","AURAY"]
["PORTET GYM",219,"76031.099","PORTET SUR GARONNE"]
["RAYON SPORTIF BRAGARD ST DIZIER",220,"44052.055","SAINT DIZIER"]
["RYTHM' & GYM' CHAMPIGNY LE SEC",221,"75086.084","CHAMPIGNY LE SEC"]
["SAINT JEAN GYMNIQUE",222,"76031.048","ST JEAN"]
["SAINT QUENTIN GYMNASTIQUE",223,"32002.078","SAINT QUENTIN"]
["SALTO ALBIGEOIS",224,"76081.003","ALBI"]
["SALTO GYM CLUB",225,"53035.176","SAINT AUBIN DU CORMIER"]
["SAUMUR LOIRE ALLIANCE GYMNIQUE",226,"52049.102","SAUMUR"]
["SEDAN GYMNIQUE",227,"44008.007","SEDAN"]
["SOCIETE DE GYMNASTIQUE DE YUTZ",228,"44057.012","YUTZ"]
["SOCIETE DE GYMNASTIQUE MASEVAUX",229,"44068.039","MASEVAUX"]
["SOCIETE DE GYMNASTIQUE SAUSHEIM",230,"44068.054","SAUSHEIM"]
["SOCIETE DE TRAMPOLINE ET DE GYMNASTIQUE DE CHATEAUDUN",231,"24028.017","CHATEAUDUN"]
["SOCIETE MIOSSAISE",232,"75033.011","MIOS"]
["SPORTING CLUB DE LIMOURS GYMNASTIQUE",233,"11091.107","LIMOURS"]
["STADE POITEVIN GYMNASTIQUE",234,"75086.036","POITIERS"]
["THOUROTTE GYM",235,"32060.037","THOUROTTE"]
["TOTEM GYM",236,"01971.017","BASSE TERRE"]
["TRICOLORE SPORTIVE DE MASSY",237,"11091.110","MASSY"]
["TRINITAIRES GYMNASTIQUE",238,"75079.045","MAULEON"]
["UNION COSNOISE SPORT",239,"27058.012","COSNE COURS SUR LOIRE"]
["UNION DE MEAN-PENHOËT",240,"52044.005","SAINT NAZAIRE"]
["UNION GYMNIQUE de BOUSSY SAINT ANTOINE",241,"11091.101","BOUSSY SAINT ANTOINE"]
["UNION GYMNIQUE SAPEURS POMPIER PORTES LES VALENCE",242,"84026.043","PORTES LES VALENCE"]
["UNION GYMNIQUE SAUJONNAISE",243,"75017.059","SAUJON"]
["UNION KOENIGSHOFFEN",244,"44067.077","KOENIGSHOFFEN"]
["UNION SPORTIVE ARGENTON GYMNASTIQUE",245,"24036.096","ARGENTON SUR CREUSE"]
["UNION SPORTIVE AVENIR AMNEVILLE",246,"44057.053","AMNEVILLE"]
["UNION SPORTIVE BOURGUESANNE",247,"84007.002","BOURG ST ANDEOL"]
["UNION SPORTIVE CRESTOISE",248,"84026.005","CREST"]
["UNION SPORTIVE DE CHAMALIERES",249,"84063.009","CHAMALIÈRES"]
["UNION SPORTIVE DE VERN GYMNASTIQUE",250,"53035.174","VERN SUR SEICHE"]
["UNION SPORTIVE LAVALLOISE",251,"52053.073","LAVAL"]
["UNION SPORTIVE MUNICIPALE MALAKOFF",252,"11092.209","MALAKOFF"]
["UNION SPORTIVE SAINTES CLUB CHEMINOTS GYMNASTIQUE",253,"75017.026","SAINTES"]
["UNION SPORTIVE VIC LE COMTE GYMNASTIQUE",254,"84063.022","VIC LE COMTE"]
["VAUDOISE HERICOURT",255,"27070.052","HÉRICOURT"]

{"sheet":"Evolution Tumbling avant","index":1,"n_rows":14,"n_cols":3,"rows_kept":14,"hidden":true,"merged":[[0,0,0,2],[2,0,8,0],[9,0,12,0]]}
["Séries autorisées au Tumbling en avant\nTeamGym"]
[null,"Séries","Valeur"]
[null,"Roulade avant",0.3]
[null,"Roue",0.5]
[null,"Roue Rondade",0.5]
[null,"Roue Roue pied pied",0.5]
[null,"Roue saut de mains",1.5]
[null,"Saut de mains",1.5]
[null,"Saut de mains 1 pied",1.5]
[null,"Saut de mains 1 pied Roue",1.5]
[null,"Saut de mains 1 pied Rondade",1.5]
[null,"Saut de mains 1 pied Saut de mains",1.5]
[null,"Salto av groupé",2]
[null,"Série Nulle",0]

{"sheet":"Evolution Tumbling arrière","index":2,"n_rows":42,"n_cols":8,"rows_kept":42,"hidden":true,"merged":[[0,0,0,2],[2,0,4,0],[5,0,11,0]]}
["Séries autorisée au Tumbling en arrière\nTeamGym"]
[null,"Séries","Valeur"]
[null,"Roue",0.5]
[null,"Roue pied pied",0.5]
[null,"Roue Roue pied pied",0.5]
[null,"Roue saut de mains",0.5]
[null,"Saut de mains 1 pied Roue",0.5]
[null,"Rondade",1]
[null,"Roue Rondade",1]
[null,"Saut de mains 1 pied Rondade",1]
[null,"Rondade flip",1.5]
[null,"Rondade salto groupé",2]
[null,"Série Nulle ",0]
{"$rows_empty":13}
[{"$nulls":7},0]
{"$rows_empty":10}
[{"$nulls":7},0]
[{"$nulls":7},0]
[{"$nulls":7},0]
[{"$nulls":7},0]
[{"$nulls":7},0]

{"sheet":"Détente Tumbling Mixte","index":3,"n_rows":122,"n_cols":3,"rows_kept":122,"hidden":true,"merged":[[0,0,0,2],[2,0,17,0],[18,0,34,0],[35,0,39,0],[40,0,52,0]]}
["Séries autorisée au Tumbling en arrière\nTeamGym"]
[null,"Séries","Valeur"]
[null,"Saut de mains 1 pied Roue ",0.5]
[null,"Saut de mains 1 pied Rondade",0.5]
[null,"Roue Roue pied pied ",0.5]
[null,"Roue saut de mains ",0.5]
[null,"Roue Rondade",0.5]
[null,"Roue Roue pied pied",0.5]
[null,"Salto av décalé groupé Rondade  ",0.6]
[null,"Salto av décalé carpé Rondade  ",0.7]
[null,"Rondade flip ",1]
[null,"Roue saut de mains",1]
[null,"Saut de mains 1 pied Rondade",1]
[null,"Saut de mains 1 pied Roue",1]
[null,"Saut de mains 1 pied Saut de mains",1]
[null,"Salto av décalé groupé Rondade flip ",1.1]
[null,"Salto av décalé carpé Rondade flip ",1.2]
[null,"Flip av saut de mains",1.2]
["3 éléments","Saut de mains flip av ",1.2]
[null,"Rondade salto groupé ",1.4]
[null,"Rondade flip salto groupé ",1.4]
[null,"Salto av décalé groupé Rondade  ",1.4]
[null,"Salto av décalé groupé roue  ",1.4]
[null,"Salto av décalé groupé saut de mains ",1.4]
[null,"Rondade salto carpé ",1.5]
[null,"Rondade flip salto carpé ",1.5]
[null,"Salto av décalé groupé Rondade  flip salto groupé ",1.5]
[null,"Salto av décalé groupé Rondade  Salto groupé ",1.5]
[null,"Salto av décalé carpé Rondade  ",1.5]
[null,"Salto av décalé carpé saut de mains ",1.5]
[null,"Rondade salto groupé 180° ",1.6]
[null,"Rondade salto tendu ",1.6]
[null,"Rondade flip salto groupé 180° ",1.6]
[null,"Rondade flip salto tendu ",1.6]
[null,"Salto av décalé groupé Rondade  flip salto carpé ",1.6]
["4 éléments","Salto av décalé groupé Rondade  Salto carpé ",1.6]
[null,"Salto av décalé carpé Rondade  flip salto groupé",1.6]
[null,"Salto av décalé carpé Rondade  Salto groupé ",1.6]
[null,"Saut de mains 1 pied Saut de mains salto groupé ",1.6]
[null,"Saut de mains salto av groupé",1.6]
["4 éléments","Rondade salto carpé 180° ",1.7]
[null,"Rondade flip salto carpé 180° ",1.7]
[null,"Salto av décalé groupé Rondade  flip salto groupé 180° ",1.7]
[null,"Salto av décalé groupé Rondade  flip salto tendu ",1.7]
[null,"Salto av décalé groupé Rondade  Salto tendu ",1.7]
[null,"Salto av décalé carpé Rondade  flip salto carpé ",1.7]
[null,"Salto av décalé carpé Rondade  Salto carpé ",1.7]
[null,"Salto av carpé salto av groupé ",1.7]
[null,"Salto av décalé groupé saut de mains salto groupé ",1.7]
[null,"Salto av groupé salto carpé ",1.7]
[null,"Saut de mains 1 pied Saut de mains salto carpé",1.7]
[null,"Saut de mains salto av carpé",1.7]
[null,"Rondade salto groupé 360° ",1.8]
[null,"Rondade salto tendu 180° ",1.8]
[null,"Rondade flip salto groupé 360° ",1.8]
[null,"Rondade flip salto tendu 180° ",1.8]
[null,"Salto av décalé groupé Rondade  flip salto carpé 180° ",1.8]
[null,"Salto av décalé carpé Rondade  flip salto groupé 180° ",1.8]
[null,"Salto av décalé carpé Rondade  flip salto Tendu ",1.8]
[null,"Salto av décalé carpé Rondade  Salto groupé 180°",1.8]
[null,"Salto av décalé carpé Rondade  Salto tendu ",1.8]
[null,"Flip av salto av groupé ",1.8]
[null,"Salto av décalé carpé saut de mains salto groupé",1.8]
[null,"Salto av décalé groupé saut de mains salto carpé ",1.8]
[null,"Salto av groupé salto tendu ",1.8]
[null,"Salto av tendu salto av groupé ",1.8]
[null,"Saut de mains 1 pied Saut de mains salto groupé 180° ",1.8]
[null,"Saut de mains 1 pied Saut de mains salto tendu",1.8]
[null,"Saut de mains flip av salto groupé ",1.8]
[null,"Saut de mains salto av groupé 180°",1.8]
[null,"Saut de mains salto av groupé salto av goupé ",1.8]
[null,"Saut de mains salto av tendu",1.8]
[null,"Salto av décalé groupé Rondade  flip salto tendu 180° ",1.9]
[null,"Salto av décalé groupé Rondade  Salto tendu 180° ",1.9]
[null,"Salto av décalé carpé Rondade  flip salto carpé 180° ",1.9]
[null,"Salto av décalé carpé Rondade  Salto carpé 180°",1.9]
[null,"Flip av salto av carpé ",1.9]
[null,"Flip av saut de mains salto groupé ",1.9]
[null,"Salto av décalé carpé saut de mains salto carpé ",1.9]
[null,"Salto av décalé groupé saut de mains salto tendu ",1.9]
[null,"Salto av tendu salto av carpé ",1.9]
[null,"Saut de mains 1 pied Saut de mains salto carpé 180°",1.9]
[null,"Saut de mains flip av salto carpé ",1.9]
[null,"Saut de mains salto av carpé 180°",1.9]
[null,"Rondade salto tendu 360°",2]
[null,"Rondade flip salto tendu 360°",2]
[null,"Salto av décalé groupé Rondade  flip salto tendu 360°",2]
[null,"Salto av décalé groupé Rondade  Salto tendu 360°",2]
[null,"Salto av décalé carpé Rondade  flip salto Tendu 180° ",2]
[null,"Salto av décalé carpé Rondade  flip salto Tendu 360° ",2]
[null,"Salto av décalé carpé Rondade  Salto tendu 180°",2]
[null,"Salto av décalé carpé Rondade  Salto tendu 360° ",2]
[null,"Flip av salto av carpé 180° ",2]
[null,"Flip av salto av carpé 360° ",2]
[null,"Flip av salto av groupé 180° ",2]
[null,"Flip av salto av groupé 360° ",2]
[null,"Flip av salto av tendu ",2]
[null,"Flip av salto av tendu 180° ",2]
[null,"Flip av salto av tendu 360° ",2]
[null,"Salto av décalé carpé saut de mains salto carpé 180° ",2]
[null,"Salto av décalé carpé saut de mains salto carpé 360° ",2]
[null,"Salto av décalé carpé saut de mains salto groupé 180°",2]
[null,"Salto av décalé carpé saut de mains salto groupé 360°",2]
[null,"Salto av décalé carpé saut de mains salto tendu ",2]
[null,"Saut de mains 1 pied Saut de mains salto carpé 360°",2]
[null,"Saut de mains 1 pied Saut de mains salto groupé  360° ",2]
[null,"Saut de mains 1 pied Saut de mains salto tendu 180°",2]
[null,"Saut de mains 1 pied Saut de mains salto tendu 360°",2]
[null,"Saut de mains flip av salto carpé 180° ",2]
[null,"Saut de mains flip av salto carpé 360° ",2]
[null,"Saut de mains flip av salto carpé salto av groupé ",2]
[null,"Saut de mains flip av salto groupé 180°",2]
[null,"Saut de mains flip av salto groupé 360°",2]
[null,"Saut de mains flip av salto groupé salto av groupé ",2]
[null,"Saut de mains flip av salto tendu ",2]
[null,"Saut de mains flip av salto tendu 180° ",2]
[null,"Saut de mains flip av salto tendu 360° ",2]
[null,"Saut de mains flip av salto tendu salto av groupé ",2]
[null,"Saut de mains salto av groupé 360°",2]
[null,"Saut de mains salto av tendu 180° ",2]
[null,"Saut de mains salto av tendu 360°",2]
[null,"Série Nulle ",0]

{"sheet":"Evolution MT - MT","index":4,"n_rows":13,"n_cols":3,"rows_kept":13,"hidden":true,"merged":[[0,0,0,2],[2,0,11,0]]}
["Séries autorisées au Mini Trampoline et Table de Saut\nTeamGym"]
[null,"Eléments","Valeur "]
[null,"Saut groupé",1]
[null,"Saut droit",1]
[null,"Saut droit 1/2 tour",1.2]
[null,"Saut carpé serré",1.3]
[null,"Saut carpé écart",1.3]
[null,"Saut droit 1 tour",1.4]
[null,"Saut carpé écart 1/2 tour",1.5]
[null,"Salto av groupé",1.8]
[null,"Salto av carpé",1.9]
[null,"Salto av tendu",2]
[null,"Passage Nul",0]

{"sheet":"Découverte Tumbling avant","index":5,"n_rows":12,"n_cols":3,"rows_kept":12,"hidden":true,"merged":[[0,0,0,2],[2,0,8,0],[9,0,10,0]]}
["Séries autorisées au Tumbling en avant\nTeamGym"]
[null,"Séries","Valeur"]
[null,"Roulade avant",0.5]
[null,"Roue",1]
[null,"Roue Roue pied pied",1]
[null,"Roue saut de mains",2]
[null,"Saut de mains",2]
[null,"Saut de mains 1 pied",2]
[null,"Saut de mains 1 pied Rondade",2]
[null,"Saut de mains 1 pied Roue",2]
[null,"Saut de mains 1 pied Saut de mains",2]
[null,"Série Nulle",0]

{"sheet":"Découverte Tumbling arrière","index":6,"n_rows":41,"n_cols":8,"rows_kept":41,"hidden":true,"merged":[[0,0,0,2],[2,0,4,0],[5,0,10,0]]}
["Séries autorisée au Tumbling en arrière\nTeamGym"]
[null,"Séries","Valeur"]
[null,"Roue",1]
[null,"Roue pied pied",1]
[null,"Roue Roue pied pied",1]
[null,"Roue saut de mains",1]
[null,"Saut de mains 1 pied Roue",1]
[null,"Rondade",1.5]
[null,"Roue Rondade",1.5]
[null,"Saut de mains 1 pied Rondade",1.5]
[null,"Rondade flip",2]
[null,"Série Nulle ",0]
{"$rows_empty":13}
[{"$nulls":7},0]
{"$rows_empty":10}
[{"$nulls":7},0]
[{"$nulls":7},0]
[{"$nulls":7},0]
[{"$nulls":7},0]
[{"$nulls":7},0]

{"sheet":"Détente Tumbling avant","index":7,"n_rows":71,"n_cols":3,"rows_kept":71,"hidden":true,"merged":[[0,0,0,2],[2,0,32,0],[33,0,53,0],[54,0,65,0],[66,0,67,0]]}
["Séries autorisées au Tumbling en avant\nTeamGym"]
[null,"Séries","Valeur"]
[null,"Roue Rondade",0.5]
[null,"Roue Roue pied pied",0.5]
[null,"Roue saut de mains",1]
[null,"Saut de mains 1 pied Rondade",1]
[null,"Saut de mains 1 pied Roue",1]
[null,"Saut de mains 1 pied Saut de mains",1]
[null,"Flip av saut de mains",1.2]
[null,"Saut de mains flip av ",1.2]
[null,"Salto av décalé groupé Rondade  ",1.4]
[null,"Salto av décalé groupé roue  ",1.4]
[null,"Salto av décalé groupé saut de mains ",1.4]
[null,"Salto av décalé carpé Rondade  ",1.5]
[null,"Salto av décalé carpé saut de mains ",1.5]
[null,"Saut de mains 1 pied Saut de mains salto groupé ",1.6]
[null,"Saut de mains salto av groupé",1.6]
[null,"Salto av carpé salto av groupé ",1.7]
[null,"Salto av décalé groupé saut de mains salto groupé ",1.7]
[null,"Salto av groupé salto carpé ",1.7]
[null,"Saut de mains 1 pied Saut de mains salto carpé",1.7]
[null,"Saut de mains salto av carpé",1.7]
[null,"Flip av salto av groupé ",1.8]
[null,"Salto av décalé carpé saut de mains salto groupé",1.8]
[null,"Salto av décalé groupé saut de mains salto carpé ",1.8]
[null,"Salto av groupé salto tendu ",1.8]
[null,"Salto av tendu salto av groupé ",1.8]
[null,"Saut de mains 1 pied Saut de mains salto groupé 180° ",1.8]
[null,"Saut de mains 1 pied Saut de mains salto tendu",1.8]
[null,"Saut de mains flip av salto groupé ",1.8]
[null,"Saut de mains salto av groupé 180°",1.8]
[null,"Saut de mains salto av groupé salto av goupé ",1.8]
[null,"Saut de mains salto av tendu",1.8]
["3 éléments","Flip av salto av carpé ",1.9]
[null,"Flip av saut de mains salto groupé ",1.9]
[null,"Salto av décalé carpé saut de mains salto carpé ",1.9]
[null,"Salto av décalé groupé saut de mains salto tendu ",1.9]
[null,"Salto av tendu salto av carpé ",1.9]
[null,"Saut de mains 1 pied Saut de mains salto carpé 180°",1.9]
[null,"Saut de mains flip av salto carpé ",1.9]
[null,"Saut de mains salto av carpé 180°",1.9]
[null,"Flip av salto av carpé 180° ",2]
[null,"Flip av salto av carpé 360° ",2]
[null,"Flip av salto av groupé 180° ",2]
[null,"Flip av salto av groupé 360° ",2]
[null,"Flip av salto av tendu ",2]
[null,"Flip av salto av tendu 180° ",2]
[null,"Flip av salto av tendu 360° ",2]
[null,"Salto av décalé carpé saut de mains salto carpé 180° ",2]
[null,"Salto av décalé carpé saut de mains salto carpé 360° ",2]
[null,"Salto av décalé carpé saut de mains salto groupé 180°",2]
[null,"Salto av décalé carpé saut de mains salto groupé 360°",2]
[null,"Salto av décalé carpé saut de mains salto tendu ",2]
[null,"Saut de mains 1 pied Saut de mains salto carpé 360°",2]
["3 éléments\n(suite)","Saut de mains 1 pied Saut de mains salto groupé  360° ",2]
[null,"Saut de mains 1 pied Saut de mains salto tendu 180°",2]
[null,"Saut de mains 1 pied Saut de mains salto tendu 360°",2]
[null,"Saut de mains flip av salto carpé 180° ",2]
[null,"Saut de mains flip av salto carpé 360° ",2]
[null,"Saut de mains flip av salto carpé salto av groupé ",2]
[null,"Saut de mains flip av salto groupé 180°",2]
[null,"Saut de mains flip av salto groupé 360°",2]
[null,"Saut de mains flip av salto groupé salto av groupé ",2]
[null,"Saut de mains flip av salto tendu ",2]
[null,"Saut de mains flip av salto tendu 180° ",2]
[null,"Saut de mains flip av salto tendu 360° ",2]
[null,"Saut de mains flip av salto tendu salto av groupé ",2]
[null,"Saut de mains salto av groupé 360°",2]
[null,"Saut de mains salto av tendu 180° ",2]
[null,"Saut de mains salto av tendu 360° ",2]
[null,"Série Nulle ",0]

{"sheet":"Détente Tumbling arrière","index":8,"n_rows":55,"n_cols":3,"rows_kept":55,"hidden":true,"merged":[[0,0,0,2],[2,0,17,0],[18,0,38,0],[39,0,43,0],[44,0,51,0]]}
["Séries autorisée au Tumbling en arrière\nTeamGym"]
[null,"Séries","Valeur"]
["2 éléments","Saut de mains 1 pied Roue ",0.5]
[null,"Saut de mains 1 pied Rondade",0.5]
[null,"Roue Roue pied pied ",0.5]
[null,"Roue saut de mains ",0.5]
[null,"Roue Rondade ",0.5]
[null,"Salto av décalé groupé Rondade  ",0.6]
[null,"Salto av décalé carpé Rondade  ",0.7]
[null,"Rondade flip ",1]
[null,"Salto av décalé groupé Rondade  flip ",1.1]
[null,"Salto av décalé carpé Rondade  flip ",1.2]
[null,"Rondade salto groupé ",1.4]
[null,"Rondade flip salto groupé ",1.4]
[null,"Rondade salto carpé ",1.5]
[null,"Rondade flip salto carpé ",1.5]
[null,"Salto av décalé groupé Rondade  flip salto groupé ",1.5]
[null,"Salto av décalé groupé Rondade  Salto groupé ",1.5]
["3 éléments","Rondade salto groupé 180° ",1.6]
[null,"Rondade salto tendu ",1.6]
[null,"Rondade flip salto groupé 180° ",1.6]
[null,"Rondade flip salto tendu ",1.6]
[null,"Salto av décalé groupé Rondade  flip salto carpé ",1.6]
[null,"Salto av décalé groupé Rondade  Salto carpé ",1.6]
[null,"Salto av décalé carpé Rondade  flip salto groupé",1.6]
[null,"Salto av décalé carpé Rondade  Salto groupé ",1.6]
[null,"Rondade salto carpé 180° ",1.7]
[null,"Rondade flip salto carpé 180° ",1.7]
[null,"Salto av décalé groupé Rondade  flip salto groupé 180° ",1.7]
[null,"Salto av décalé groupé Rondade  flip salto tendu ",1.7]
[null,"Salto av décalé groupé Rondade  Salto tendu ",1.7]
[null,"Salto av décalé carpé Rondade  flip salto carpé ",1.7]
[null,"Salto av décalé carpé Rondade  Salto carpé ",1.7]
[null,"Rondade salto groupé 360° ",1.8]
[null,"Rondade salto tendu 180° ",1.8]
[null,"Rondade flip salto groupé 360° ",1.8]
[null,"Rondade flip salto tendu 180° ",1.8]
[null,"Salto av décalé groupé Rondade  flip salto carpé 180° ",1.8]
[null,"Salto av décalé carpé Rondade  flip salto groupé 180° ",1.8]
["4 éléments","Salto av décalé carpé Rondade  flip salto Tendu ",1.8]
[null,"Salto av décalé carpé Rondade  Salto groupé 180°",1.8]
[null,"Salto av décalé carpé Rondade  Salto tendu ",1.8]
[null,"Salto av décalé groupé Rondade  flip salto tendu 180° ",1.9]
[null,"Salto av décalé groupé Rondade  Salto tendu 180° ",1.9]
["4 éléments","Salto av décalé carpé Rondade  flip salto carpé 180° ",1.9]
[null,"Salto av décalé carpé Rondade  Salto carpé 180°",1.9]
[null,"Rondade salto tendu 360°",2]
[null,"Rondade flip salto tendu 360°",2]
[null,"Salto av décalé groupé Rondade  flip salto tendu 360°",2]
[null,"Salto av décalé groupé Rondade  Salto tendu 360°",2]
[null,"Salto av décalé carpé Rondade  flip salto Tendu 180° ",2]
[null,"Salto av décalé carpé Rondade  flip salto Tendu 360° ",2]
[null,"Salto av décalé carpé Rondade  Salto tendu 180°",2]
[null,"Salto av décalé carpé Rondade  Salto tendu 360° ",2]
[null,"Série Nulle",0]

{"sheet":"Découverte MT - MT","index":9,"n_rows":11,"n_cols":3,"rows_kept":11,"hidden":true,"merged":[[0,0,0,2],[2,0,9,0]]}
["Séries autorisées au Mini Trampoline et Table de Saut\nTeamGym"]
[null,"Eléments","Valeur "]
[null,"Saut droit",1.2]
[null,"Saut droit 1/2 tour",1.4]
[null,"Saut droit 1 tour",1.6]
[null,"Saut groupé",1.5]
[null,"Saut carpé serré",1.8]
[null,"Saut carpé écart",1.8]
[null,"Saut carpé écart 1/2 tour",2]
[null,"Salto av groupé",2]
[null,"Passage Nul",0]

{"sheet":"Détente MT - Saut","index":10,"n_rows":8,"n_cols":3,"rows_kept":8,"hidden":true,"merged":[[0,0,0,2],[2,0,8,0]]}
["Séries autorisées au Mini Trampoline et Table de Saut\nTeamGym"]
[null,"Eléments","Valeur"]
[null,"Rondade ",1]
[null,"Rondade 1/2 tour - Pétrick (180°/180°) ",1.2]
[null,"Lune ",1.6]
[null,"Lune 1/2 tour ",1.8]
[null,"Lune 1 vrille ",2]
[null,"Saut Nul",0]

{"sheet":"ListeDiffSol","index":11,"n_rows":147,"n_cols":11,"rows_kept":147,"hidden":true,"merged":[[0,0,0,3],[0,6,0,9]]}
["Fédérale",{"$nulls":5},"Performance"]
[]
["Saut","Pivots","Maintien","Elément de force","Mixte","Combi","Saut","Pivots","Maintien","Elément de force","Mixte"]
[]
["S201","P201","M204",null,"S201","S201","S201","P201","M601","EF1005","S201"]
["S202","P202","M206",null,"S202","S401","S401","P401","M1001","EF1206","S401"]
["S204","P401","M402",null,"S204","S601","S601","P601","M1201","EF1407","S601"]
["S210","P402","M404",null,"S210","S1001","S1001","P801","M402","EF1408","S1001"]
["S211","P403","M406",null,"S211","S1201","S1201","P1201","M1002","EF1608","S1201"]
["S214",null,"MM201",null,"S214","S202","S202","P202","M1202","EF809","S202"]
["S215",null,"MM202",null,"S215","S602","S602","P402","M603","EF810","S602"]
["S220",null,"MM204",null,"S220","S1002","S1002","P602","M1003","EF1210","S1002"]
["S401",null,"MM206",null,"S401","S1202","S1202","P802","M204","EF1610","S1202"]
["S403",null,"MM207",null,"S403","S403","S403","P1202","M404","EF1211","S403"]
["S406",null,"MM208",null,"S406","S603","S603","P403","M604","EF1411","S603"]
["S409",null,"MM402",null,"S409","S803","S803","P803","M1001","EF1611","S803"]
["S410",null,"MM403",null,"S410","S204","S204","P1003","M1204","EF812","S204"]
["S411",null,"MM404",null,"S411","S604","S604","P604","M605","EF1012","S604"]
["S412",null,"MM405",null,"S412","S804","S804","P1004","M805","EF1412","S804"]
["S415",{"$nulls":3},"S415","S1004","S1004","P1204","M206","EF1013","S1004"]
["S416",{"$nulls":3},"S416","S605","S605",null,"M406",null,"S605"]
["S418",{"$nulls":3},"S418","S805A","S805A",null,"M1006",null,"S805A"]
["S420",{"$nulls":3},"S420","S805B","S805B",null,"M1206",null,"S805B"]
[{"$nulls":4},"P201","S406","S406",null,"M807",null,"S406"]
[{"$nulls":4},"P202","S606","S606",null,"M1207",null,"S606"]
[{"$nulls":4},"P401","S806A","S806A",null,"MM201",null,"S806A"]
[{"$nulls":4},"P402","S806B","S806B",null,"MM801",null,"S806B"]
[{"$nulls":4},"P403","S807","S807",null,"MM1001",null,"S807"]
[{"$nulls":4},"M204","S1007","S1007",null,"MM202",null,"S1007"]
[{"$nulls":4},"M206","S1008","S1008",null,"MM402",null,"S1008"]
[{"$nulls":4},"M402","S1208","S1208",null,"MM1202",null,"S1208"]
[{"$nulls":4},"M404","S409","S409",null,"MM403",null,"S409"]
[{"$nulls":4},"M406","S809","S809",null,"MM603",null,"S809"]
[{"$nulls":4},"MM201","S1209A","S1209A",null,"MM1403",null,"S1209A"]
[{"$nulls":4},"MM202","S1209B","S1209B",null,"MM204",null,"S1209B"]
[{"$nulls":4},"MM204","S210","S210",null,"MM404",null,"S210"]
[{"$nulls":4},"MM206","S410","S410",null,"MM604",null,"S410"]
[{"$nulls":4},"MM207","S1010","S1010",null,"MM804",null,"S1010"]
[{"$nulls":4},"MM208","S211","S211",null,"MM405",null,"S211"]
[{"$nulls":4},"MM402","S411","S411",null,"MM805",null,"S411"]
[{"$nulls":4},"MM403","S811","S811",null,"MM1005",null,"S811"]
[{"$nulls":4},"MM404","S412","S412",null,"MM206",null,"S412"]
[{"$nulls":4},"MM405","S812","S812",null,"MM606",null,"S812"]
[{"$nulls":5},"S1212","S1212",null,"MM806",null,"S1212"]
[{"$nulls":5},"S613","S613",null,"MM1006",null,"S613"]
[{"$nulls":5},"S813","S813",null,"MM207",null,"S813"]
[{"$nulls":5},"S214","S214",null,"MM208",null,"S214"]
[{"$nulls":5},"S614","S614",{"$nulls":3},"S614"]
[{"$nulls":5},"S814","S814",{"$nulls":3},"S814"]
[{"$nulls":5},"S1214","S1214",{"$nulls":3},"S1214"]
[{"$nulls":5},"S215","S215",{"$nulls":3},"S215"]
[{"$nulls":5},"S415","S415",{"$nulls":3},"S415"]
[{"$nulls":5},"S615","S615",{"$nulls":3},"S615"]
[{"$nulls":5},"S416","S416",{"$nulls":3},"S416"]
[{"$nulls":5},"S1016","S1016",{"$nulls":3},"S1016"]
[{"$nulls":5},"S1216","S1216",{"$nulls":3},"S1216"]
[{"$nulls":5},"S1017","S1017",{"$nulls":3},"S1017"]
[{"$nulls":5},"S418","S418",{"$nulls":3},"S418"]
[{"$nulls":5},"S618","S618",{"$nulls":3},"S618"]
[{"$nulls":5},"S1018","S1018",{"$nulls":3},"S1018"]
[{"$nulls":5},"S819","S819",{"$nulls":3},"S819"]
[{"$nulls":5},"S1019","S1019",{"$nulls":3},"S1019"]
[{"$nulls":5},"S1219","S1219",{"$nulls":3},"S1219"]
[{"$nulls":5},"S220","S220",{"$nulls":3},"S220"]
[{"$nulls":5},"S420","S420",{"$nulls":3},"S420"]
[{"$nulls":5},"S1020","S1020",{"$nulls":3},"S1020"]
[{"$nulls":5},"S1220","S1220",{"$nulls":3},"S1220"]
[{"$nulls":5},"S621","S621",{"$nulls":3},"S621"]
[{"$nulls":5},"S821","S821",{"$nulls":3},"S821"]
[{"$nulls":5},"S622","S622",{"$nulls":3},"S622"]
[{"$nulls":5},"S1022","S1022",{"$nulls":3},"S1022"]
[{"$nulls":5},"S1222","S1222",{"$nulls":3},"S1222"]
[{"$nulls":5},"M601",{"$nulls":4},"M601"]
[{"$nulls":5},"M1001",{"$nulls":4},"M1001"]
[{"$nulls":5},"M1201",{"$nulls":4},"M1201"]
[{"$nulls":5},"M402",{"$nulls":4},"M402"]
[{"$nulls":5},"M1002",{"$nulls":4},"M1002"]
[{"$nulls":5},"M1202",{"$nulls":4},"M1202"]
[{"$nulls":5},"M603",{"$nulls":4},"M603"]
[{"$nulls":5},"M1003",{"$nulls":4},"M1003"]
[{"$nulls":5},"M204",{"$nulls":4},"M204"]
[{"$nulls":5},"M404",{"$nulls":4},"M404"]
[{"$nulls":5},"M604",{"$nulls":4},"M604"]
[{"$nulls":5},"M1001",{"$nulls":4},"M1001"]
[{"$nulls":5},"M1204",{"$nulls":4},"M1204"]
[{"$nulls":5},"M605",{"$nulls":4},"M605"]
[{"$nulls":5},"M805",{"$nulls":4},"M805"]
[{"$nulls":5},"M206",{"$nulls":4},"M206"]
[{"$nulls":5},"M406",{"$nulls":4},"M406"]
[{"$nulls":5},"M1006",{"$nulls":4},"M1006"]
[{"$nulls":5},"M1206",{"$nulls":4},"M1206"]
[{"$nulls":5},"M807",{"$nulls":4},"M807"]
[{"$nulls":5},"M1207",{"$nulls":4},"M1207"]
[{"$nulls":5},"MM201",{"$nulls":4},"MM201"]
[{"$nulls":5},"MM801",{"$nulls":4},"MM801"]
[{"$nulls":5},"MM1001",{"$nulls":4},"MM1001"]
[{"$nulls":5},"MM202",{"$nulls":4},"MM202"]
[{"$nulls":5},"MM402",{"$nulls":4},"MM402"]
[{"$nulls":5},"MM1202",{"$nulls":4},"MM1202"]
[{"$nulls":5},"MM403",{"$nulls":4},"MM403"]
[{"$nulls":5},"MM603",{"$nulls":4},"MM603"]
[{"$nulls":5},"MM1403",{"$nulls":4},"MM1403"]
[{"$nulls":5},"MM204",{"$nulls":4},"MM204"]
[{"$nulls":5},"MM404",{"$nulls":4},"MM404"]
[{"$nulls":5},"MM604",{"$nulls":4},"MM604"]
[{"$nulls":5},"MM804",{"$nulls":4},"MM804"]
[{"$nulls":5},"MM405",{"$nulls":4},"MM405"]
[{"$nulls":5},"MM805",{"$nulls":4},"MM805"]
[{"$nulls":5},"MM1005",{"$nulls":4},"MM1005"]
[{"$nulls":5},"MM206",{"$nulls":4},"MM206"]
[{"$nulls":5},"MM606",{"$nulls":4},"MM606"]
[{"$nulls":5},"MM806",{"$nulls":4},"MM806"]
[{"$nulls":5},"MM1006",{"$nulls":4},"MM1006"]
[{"$nulls":5},"MM207",{"$nulls":4},"MM207"]
[{"$nulls":5},"MM208",{"$nulls":4},"MM208"]
[{"$nulls":10},"EF1005"]
[{"$nulls":10},"EF1206"]
[{"$nulls":10},"EF1407"]
[{"$nulls":10},"EF1408"]
[{"$nulls":10},"EF1608"]
[{"$nulls":10},"EF809"]
[{"$nulls":10},"EF810"]
[{"$nulls":10},"EF1210"]
[{"$nulls":10},"EF1610"]
[{"$nulls":10},"EF1211"]
[{"$nulls":10},"EF1411"]
[{"$nulls":10},"EF1611"]
[{"$nulls":10},"EF812"]
[{"$nulls":10},"EF1012"]
[{"$nulls":10},"EF1412"]
[{"$nulls":10},"EF1013"]
[{"$nulls":10},"P201"]
[{"$nulls":10},"P401"]
[{"$nulls":10},"P601"]
[{"$nulls":10},"P801"]
[{"$nulls":10},"P1201"]
[{"$nulls":10},"P202"]
[{"$nulls":10},"P402"]
[{"$nulls":10},"P602"]
[{"$nulls":10},"P802"]
[{"$nulls":10},"P1202"]
[{"$nulls":10},"P403"]
[{"$nulls":10},"P803"]
[{"$nulls":10},"P1003"]
[{"$nulls":10},"P604"]
[{"$nulls":10},"P1004"]
[{"$nulls":10},"P1204"]

{"sheet":"Détente MT - MT","index":12,"n_rows":15,"n_cols":3,"rows_kept":15,"hidden":true,"merged":[[0,0,0,2],[2,0,15,0]]}
["Séries autorisées au Mini Trampoline et Table de Saut\nTeamGym"]
[null,"Eléments","Valeur"]
[null,"Saut carpé ecart ",1]
[null,"Saut carpé ecart 1/2 tour ",1.2]
[null,"Salto av groupé ",1.4]
[null,"Salto av groupé 1/2 vrille ",1.6]
[null,"Salto av groupé 1 vrille ",1.8]
[null,"Salto av groupé 1 vrille 1/2 ",2]
[null,"Salto av carpé ",1.5]
[null,"Salto av carpé 1/2 vrille ",1.7]
[null,"Salto av tendu ",1.6]
[null,"Salto av tendu 1/2 vrille",1.8]
[null,"Salto av tendu 1 vrille ",2]
[null,"Salto av tendu 1 vrille 1/2 ",2]
[null,"Passage Nul",0]

{"sheet":"ListeClubs 95 ","index":13,"n_rows":191,"n_cols":6,"rows_kept":191,"hidden":true}
["Nom","Numéro d'affiliation","Abréviation","Région","Département","Ville"]
["UNION KOENIGSHOFFEN","01067.077","UNION KOENIGSHOFFEN","ALSACE","BAS RHIN","KOENIGSHOFFEN"]
["SOCIETE DE GYMNASTIQUE MASEVAUX","01068.039","S.G. MASEVAUX","ALSACE","HAUT RHIN","MASEVAUX"]
["SOCIETE DE GYMNASTIQUE SAUSHEIM","01068.054","S.G. SAUSHEIM","ALSACE","HAUT RHIN","SAUSHEIM"]
["EAST FRANCE TEAMGYM","01068.154",null,"ALSACE","HAUT RHIN","RIBEAUVILLE"]
["L'UNION SPORTIVE TALENCAISE","02033.004","L'US TALENCE","AQUITAINE","GIRONDE","TALENCE"]
["LE STADE PESSACAIS UNION CLUB","02033.005","SPUC PESSAC","AQUITAINE","GIRONDE","PESSAC"]
["LA VAILLANTE DE LANGON","02033.006","LA V. LANGON","AQUITAINE","GIRONDE","LANGON"]
["LES JEUNES DU CAPTALAT LA TESTE","02033.009","JC LA TESTE","AQUITAINE","GIRONDE","LA TESTE"]
["ASSOCIATION SPORTIVE ET CULTURELLE PESSAC ALOUETTE","02033.010","ASCPA PESSAC","AQUITAINE","GIRONDE","PESSAC ALOUETTE"]
["ENTENTE SPORTIVE DE BRUGES","02033.012","ES BRUGES","AQUITAINE","GIRONDE","BRUGES"]
["ASSOCIATION SPORTIVE LE HAILLAN GYM","02033.018","A.S LE HAILLAN GYM","AQUITAINE","GIRONDE","LE HAILLAN"]
["ASSOCIATION SPORTIVE ILLACAISE","02033.069","AS ILLACAISE","AQUITAINE","GIRONDE","ST JEAN D'ILLAC"]
["CLUB DEPARTEMENTAL DE GYMNASTIQUE GIRONDE","02033.074","CD GYM 33","AQUITAINE","GIRONDE","BORDEAUX"]
["ASSOCIATION SPORTIVE LOS SAUTAPRATS DE COARRAZE NAY","02064.123","AS LOS SAUTAPRATS COARRAZE NAY","AQUITAINE","PYRENEES ATLANTIQUES","NAY"]
["LA BELLERIVOISE","03003.024","LA BELLERIVOISE","AUVERGNE","ALLIER","BELLERIVE SUR ALLIER"]
["LA FRANCAISE","03003.026","LA FRANCAISE","AUVERGNE","ALLIER","CUSSET"]
["ILETS SPORTS MONTLUCONNAIS","03003.031","ILETS SPORTS MONTLUCONNAIS","AUVERGNE","ALLIER","MONTLUÇON"]
["LA BOURBONNAISE","03003.032","LA BOURBONNAISE","AUVERGNE","ALLIER","MOULINS"]
["ESPERANCE ST-GERMANOISE","03003.053","ESPERANCE ST-GERMANOISE","AUVERGNE","ALLIER","ST GERMAIN DES FOSSÉS"]
["VICHY GYM","03003.059","VICHY GYM","AUVERGNE","ALLIER","VICHY"]
["ENTENTE GYMNIQUE GANNATOISE","03003.077","E.G. GANNATOISE","AUVERGNE","ALLIER","GANNAT"]
["LA JEANNE D ARC","03015.033","LA JEANNE D'ARC","AUVERGNE","CANTAL","MAURIAC"]
["ASSOCIATION SPORTIVE MONTFERRANDAISE","03063.002","A.S. MONTFERRANDAISE","AUVERGNE","PUY DE DOME","CLERMONT-FD"]
["UNION SPORTIVE DE CHAMALIERES","03063.009","U.S. CHAMALIERES","AUVERGNE","PUY DE DOME","CHAMALIÈRES"]
["LA GAULOISE MOZAC","03063.014","LA GAULOISE MOZAC","AUVERGNE","PUY DE DOME","MOZAC"]
["UNION SPORTIVE VIC LE COMTE GYMNASTIQUE","03063.022","U.S. VIC LE COMTE","AUVERGNE","PUY DE DOME","VIC LE COMTE"]
["ASS. SPORTIVE GUERIGNY URZY","04058.005","A.S.GUERIGNY URZY","BOURGOGNE","NIEVRE","GUERIGNY"]
["ESPERANCE ST LEGER GYMNASTIQUE","04058.006","E. S. L. GYMNASTIQUE","BOURGOGNE","NIEVRE","ST LEGER DES VIGNES"]
["CERCLE SPORTIF LAIC","04071.021","CERCLE SPORTIF LAIC","BOURGOGNE","SAONE ET LOIRE","SAINT VALLIER"]
["ASSOCIATION GYMNIQUE DE PLOUGASTEL","05029.086","AG PLOUGASTEL","BRETAGNE","FINISTERE","PLOUGASTEL"]
["CERCLE PAUL BERT","05035.009","CERCLE PAUL BERT","BRETAGNE","ILLE ET VILAINE","RENNES"]
["KEWENN GYMNASTIQUE","05056.160","KEWENN GYM","BRETAGNE","MORBIHAN","QUEVEN"]
["L'UNION D'AY","06051.020","L'UNION D'AY","CHAMPAGNE-ARDENNE","MARNE","AY"]
["LA CHAUMONTAISE","06052.025","LA CHAUMONTAISE","CHAMPAGNE-ARDENNE","HAUTE MARNE","CHAUMONT"]
["RAYON SPORTIF BRAGARD ST DIZIER","06052.055","RSB ST DIZIER","CHAMPAGNE-ARDENNE","HAUTE MARNE","SAINT DIZIER"]
["AMICALE LAIQUE JULES FERRY","08001.021","ALJF Ambérieu","RHONE ALPES","AIN","AMBERIEU EN BUGEY"]
["LES ENFANTS DU DEVOIR","08001.024","LES ENFANTS DU DEVOIR","RHONE ALPES","AIN","OYONNAX"]
["AVENIR GESSIEN DE THOIRY","08001.062","AVENIR GESSIEN","RHONE ALPES","AIN","THOIRY"]
["LA SEREINE DE MONTLUEL","08001.063","SM","RHONE ALPES","AIN","MONTLUEL"]
["ECOLE GYMNIQUE DE JASSANS","08001.092","E.G.J.","RHONE ALPES","AIN","JASSANS RIOTTIER"]
["LA SEREINE DE ST ANDRE DE CORCY","08001.159","SSAC","RHONE ALPES","AIN","ST ANDRE DE CORCY"]
["UNION SPORTIVE AUBENAS","08007.032","US AUBENAS","RHONE ALPES","ARDECHE","AUBENAS"]
["AVENIR DE ROMANS","08026.003","A ROMANS","RHONE ALPES","DROME","ROMANS"]
["GYMNASE MUNICIPAL DE ST VALLIER","08026.004","GMSV","RHONE ALPES","DROME","ST VALLIER"]
["UNION SPORTIVE CRESTOISE","08026.005","UNION SPORTIVE","RHONE ALPES","DROME","CREST"]
["ENTENTE GYMNIQUE PIERRELATTE","08026.006","EGP","RHONE ALPES","DROME","PIERRELATTE"]
["AVANT GARDE TAIN TOURNON","08026.008","AGTT","RHONE ALPES","DROME","TAIN TOURNON"]
["GROUPE OMNISPORT LORIOL","08026.036","GOL","RHONE ALPES","DROME","LORIOL"]
["UNION GYMNIQUE SAPEURS POMPIER PORTES LES VALENCE","08026.043","UGSP PORTES LES VALENCE","RHONE ALPES","DROME","PORTES LES VALENCE"]
["GRENOBLE GYM","08038.013","GRENOBLE GYM","RHONE ALPES","ISERE","GRENOBLE"]
["AMICALE LAIQUE JEUNES FILLES DE ROANNE","08042.014","AMICALE LAIQUE JEUNES FILLES","RHONE ALPES","LOIRE","ROANNE"]
["INDEPENDANTE STEPHANOISE","08042.025","IS","RHONE ALPES","LOIRE","ST ETIENNE"]
["CLUB GYMNIQUE RILLIEUX","08069.051","CGR","RHONE ALPES","RHONE","RILLIEUX LA PAPE"]
["NEUVILLE GYM","08069.091","NEUVILLE GYM","RHONE ALPES","RHONE","NEUVILLE S/SAONE"]
["ENFANTS DU REVARD AIX LES BAINS","08073.037","ER AIX LES BAINS","RHONE ALPES","SAVOIE","AIX LES BAINS"]
["AVANT GARDE ALBERTVILLE","08073.042","AG ALBERTVILLE","RHONE ALPES","SAVOIE","ALBERTVILLE"]
["AVENIR EVIANAIS","08074.041",null,"RHONE ALPES","HAUTE SAVOIE","EVIAN"]
["L OLYMPIQUE GRANDE SYNTHE","09059.098","OGS","NORD PAS DE CALAIS","NORD","GRANDE SYNTHE"]
["ALLIANCE TOURQUENNOISE DE GYMNASTIQUE","09059.254","ATG","NORD PAS DE CALAIS","NORD","TOURCOING"]
["LA FRATERNELLE D'OUTREAU","09062.155","FRATERNELLE OUTREAU","NORD PAS DE CALAIS","PAS DE CALAIS","OUTREAU"]
["INDEPENDANTE COMTOISE BESANCON","10025.008","I.C BESANCON","FRANCHE COMTE","DOUBS","BESANÇON"]
["EVOLUTION MORTEAU","10025.014","EVOLUTION MORTEAU","FRANCHE COMTE","DOUBS","MORTEAU"]
["LA LEGERE MELINOISE","10070.026","LEGERE MELINOISE ECHENOZ LA M.","FRANCHE COMTE","HAUTE SAONE","ECHENOZ LA MELINE"]
["VAUDOISE HERICOURT","10070.052","VAUDOISE HERICOURT","FRANCHE COMTE","HAUTE SAONE","HÉRICOURT"]
["AVANT GARDE de la MOTTE GYM","10070.055","AGM GYM","FRANCHE COMTE","HAUTE SAONE","VESOUL"]
["CARCASSONNE OLYMPIQUE SECTION GYMNASTIQUE","11011.002","CARCASSONNE OLYMPIQUE","LANGUEDOC ROUSSILLON","AUDE","CARCASSONNE"]
["ETOILE SPORTIVE ST MARCELLOISE SUD MINERVOIS","11011.015","ETOILE SPORTIVE ST MARCEL","LANGUEDOC ROUSSILLON","AUDE","SAINT MARCEL"]
["ENTENTE GYMNIQUE LA ROSE BLEUE","11030.042","LA ROSE BLEUE BAGNOLS S/CEZE","LANGUEDOC ROUSSILLON","GARD","BAGNOLS SUR CEZE"]
["ASSOCIATION SPORTIVE BEZIERS GYMNASTIQUE & SPORTS ACROBATIQUES","11034.006","A.S.BEZIERS GYM & SPORTS ACROB","LANGUEDOC ROUSSILLON","HERAULT","BEZIERS"]
["CLUB DE GYMNASTIQUE DE SERIGNAN","11034.128","GYM CLUB SERIGNAN","LANGUEDOC ROUSSILLON","HERAULT","SERIGNAN"]
["ASSOCIATION GYMNIQUE PERPIGNANAISE","11066.053","A.G.P.PERPIGNAN","LANGUEDOC ROUSSILLON","PYRENEES ORIENTALES","PERPIGNAN"]
["GYM SPORT PAM","12054.005","PONT A MOUSSON","LORRAINE","MEURTHE ET MOSELLE","PONT A MOUSSON"]
["LORRAINE GYMNASTIQUE LUNEVILLE","12054.006","LORRAINE LUNEVILLE","LORRAINE","MEURTHE ET MOSELLE","LUNEVILLE"]
["AMICALE LAIQUE P.BROSSOLETTE VANDOEUVRE","12054.009","A.L.B. VANDOEUVRE","LORRAINE","MEURTHE ET MOSELLE","VANDOEUVRE"]
["SOCIETE DE GYMNASTIQUE DE YUTZ","12057.012","STE DE GYMN.YUTZ","LORRAINE","MOSELLE","YUTZ"]
["UNION SPORTIVE AVENIR AMNEVILLE","12057.053","U.S.AVENIR AMNEVILLE","LORRAINE","MOSELLE","AMNEVILLE"]
["ASSOCIATION GYMNIQUE CREHANGE FAULQUEMONT","12057.131","A.G.C. FAULQUEMONT","LORRAINE","MOSELLE","FAULQUEMONT"]
["LA VOSGIENNE EPINAL","12088.026","LA VOSGIENNE EPINAL","LORRAINE","VOSGES","EPINAL"]
["LA FRONTIERE DE REMIREMONT","12088.047","FRONTIERE REMIREMONT","LORRAINE","VOSGES","REMIREMONT"]
["LA JULIANA NOMEXY","12088.089","LA JULIANA NOMEXY","LORRAINE","VOSGES","NOMEXY"]
["ENTENTE GYMNIQUE DEODATIENNE","12088.092","E.G. SAINT DIE","LORRAINE","VOSGES","SAINT DIE DES VOSGES"]
["LA JEANNE D'ARC DE PLOMBIERES","12088.095","J.D'ARC PLOMBIERES","LORRAINE","VOSGES","PLOMBIERES"]
["LA PERSEVERANTE DE MAROMME","14076.020","LA PERSEVERANTE","HAUTE NORMANDIE","SEINE MARITIME","MAROMME"]
["LA SOTTEVILLAISE","14076.022","LA SOTTEVILLAISE","HAUTE NORMANDIE","SEINE MARITIME","SOTTEVILLE-LES-ROUEN"]
["ASSOCIATION SPORTIVE COURONNAISE de GYMNASTIQUE","14076.027","A.S.C.GYM","HAUTE NORMANDIE","SEINE MARITIME","PETIT COURONNE"]
["E. S. M. G-O","14076.067","E. S. M. G-O","HAUTE NORMANDIE","SEINE MARITIME","GONFREVILLE L.ORCHER"]
["GROUPEMENT GYMNIQUE HAVRE BANLIEUE","14076.073","G. G. H. B.","HAUTE NORMANDIE","SEINE MARITIME","LE HAVRE"]
["MONT SAINT AIGNAN GYMNASTIQUE AUX AGRES","14076.165","MSAGA","HAUTE NORMANDIE","SEINE MARITIME","MONT SAINT AIGNAN"]
["EVASION SPORTIVE ET CULTURELLE PAR L.ANIMATION ET LES LOISIRS GYMNIQUES","14076.177","ESCAL","HAUTE NORMANDIE","SEINE MARITIME","ROUEN"]
["ETOILE SAINT AMANDOISE","15018.003","ETOILE ST AMANDOISE","CENTRE","CHER","SAINT AMAND MONTROND"]
["LA MEHUNOISE VIGILANTE","15018.005","LA MEHUNOISE VIGILANTE","CENTRE","CHER","MEHUN SUR YEVRE"]
["GYMNASTIQUE LUNEROISE","15018.043",null,"CENTRE","CHER","LUNERY"]
["SOCIETE DE TRAMPOLINE ET DE GYMNASTIQUE DE CHATEAUDUN","15028.017","STG CHATEAUDUN","CENTRE","EURE ET LOIR","CHATEAUDUN"]
["ISSOLDUNOISE","15036.004","ISSOLDUNOISE","CENTRE","INDRE","ISSOUDUN"]
["AMICALE LAIQUE DE CHATEAUROUX","15036.050","AL CHATEAUROUX","CENTRE","INDRE","CHATEAUROUX"]
["UNION SPORTIVE ARGENTONNAISE GYMNASTIQUE","15036.096","US ARGENTONNAISE GYM","CENTRE","INDRE","ARGENTON SUR CREUSE"]
["REVEIL SPORTIF SAINT CYR SUR LOIRE","15037.071","REVEIL SPORTIF ST CYR","CENTRE","INDRE ET LOIRE","SAINT CYR SUR LOIRE"]
["ALERTE SAINT GEORGES SUR CHER","15041.063","ALERTE ST GEORGES","CENTRE","LOIR ET CHER","SAINT GEORGES SUR CHER"]
["ASSOCIATION SPORTIVE DE LA JEUNESSE ONZAINOISE","15041.076","ASJO ONZAIN","CENTRE","LOIR ET CHER","ONZAIN"]
["CLUB COMITE REGIONAL DU CENTRE-VAL DE LOIRE DE GYMNASTIQUE","15045.000","CRCVLG","CENTRE","LOIRET","OLIVET"]
["GYM OLIVET","15045.038",null,"CENTRE","LOIRET","OLIVET"]
["ETOILE BALGENTIENNE","15045.066","ETOILE BALGENTIENNE","CENTRE","LOIRET","BEAUGENCY"]
["ESPERANCE MONTATAIRE","16060.013","ESPERANCE MONTATAIRE","PICARDIE","OISE","MONTATAIRE"]
["THOUROTTE GYM","16060.037","THOUROTTE GYM","PICARDIE","OISE","THOUROTTE"]
["CLUB GYMNIQUE DE LASSIGNY","16060.068","C G L","PICARDIE","OISE","LASSIGNY"]
["CLUB DE GYMNASTIQUE DE HERMES","16060.086","CGDH","PICARDIE","OISE","HERMES"]
["ETOILE SPORTIVE DES CHEMINOTS LONGUEAU AMIENS METROPOLE GYMNASTIQUE","16080.009","ESCLAM GYM","PICARDIE","SOMME","LONGUEAU AMIENS METROPOLE"]
["ABBEVILLE GYM","16080.065","ABBEVILLE GYM","PICARDIE","SOMME","ABBEVILLE"]
["LA COGNACAISE","18016.003","LA COGNACAISE","POITOU CHARENTES","CHARENTE","COGNAC"]
["Association Angérienne d'Activité Gymnique","18017.001","A3GYM","POITOU CHARENTES","CHARENTE MARITIME","ST JEAN D ' ANGELY"]
["LA ROCHEFORTAISE","18017.006","LA ROCHEFORTAISE","POITOU CHARENTES","CHARENTE MARITIME","ROCHEFORT SUR MER"]
["UNION SPORTIVE SAINTES CLUB CHEMINOTS GYMNASTIQUE","18017.026","USSCC GYM","POITOU CHARENTES","CHARENTE MARITIME","SAINTES"]
["GYM OLERON","18017.051","GYM OLERON","POITOU CHARENTES","CHARENTE MARITIME","SAINT PIERRE D OLERON"]
["UNION GYMNIQUE SAUJONNAISE","18017.059","UG SAUJON","POITOU CHARENTES","CHARENTE MARITIME","SAUJON"]
["LA TONNACQUOISE GYMNASTIQUE","18017.081",null,"POITOU CHARENTES","CHARENTE MARITIME","TONNAY CHARENTE"]
["LES MOUETTES DE ROYAN","18017.083",null,"POITOU CHARENTES","CHARENTE MARITIME","ROYAN"]
["AVANT GARDE DE TERVES","18079.022","AVANT GARDE TERVES","POITOU CHARENTES","DEUX SEVRES","TERVES"]
["GIVRE EN MAI","18079.024","GIVRE EN MAI","POITOU CHARENTES","DEUX SEVRES","SAINT SAUVEUR DE GIVRE EN MAI"]
["CABRI MELLOIS","18079.037","CABRI MELLOIS","POITOU CHARENTES","DEUX SEVRES","MELLE"]
["TRINITAIRES GYMNASTIQUE","18079.045","TRINITAIRES GYMNASTIQUE","POITOU CHARENTES","DEUX SEVRES","MAULEON"]
["LA VOLT'AIRE AIRVAULT","18079.048","VOLT'AIRE AIRVAULT","POITOU CHARENTES","DEUX SEVRES","AIRVAULT"]
["GYM CLUB NUEIL LES AUBIERS","18079.053","GCNA","POITOU CHARENTES","DEUX SEVRES","NUEIL LES AUBIERS"]
["GYMNASTES DE L'EGRAY","18079.062","GYMNASTES EGRAY","POITOU CHARENTES","DEUX SEVRES","GERMOND"]
["IMPULSION GYM","18079.088","IMPULSION GYM","POITOU CHARENTES","DEUX SEVRES","ST MARTIN DE BERNEGOUE"]
["L'UNION des GYMNASTES NIORTAIS","18079.090","UGN","POITOU CHARENTES","DEUX SEVRES","NIORT"]
["CLUB SPORTIF ARTISTIQUE DE LA DEFENSE - CHATELLERAULT","18086.009","CSAD - C GYM","POITOU CHARENTES","VIENNE","CHATELLERAULT"]
["CERCLE D EDUCATION PHYSIQUE GYM POITIERS","18086.017","CEP POITIERS","POITOU CHARENTES","VIENNE","POITIERS"]
["CLUB GROUP'OMNISPORT de ST JULIEN L'ARS","18086.031","CGSTJA","POITOU CHARENTES","VIENNE","SAINT JULIEN L'ARS"]
["ASSOCIATION GYMNIQUE LOUDUNAISE","18086.034","AG LOUDUNAISE","POITOU CHARENTES","VIENNE","LOUDUN"]
["STADE POITEVIN GYMNASTIQUE","18086.036","SPG","POITOU CHARENTES","VIENNE","POITIERS"]
["ENTRE CLAIN ET MIOSSON","18086.068","ECM","POITOU CHARENTES","VIENNE","FLEURE"]
["NOUVEL'R GYM LENCLOITRE","18086.077","CGL","POITOU CHARENTES","VIENNE","LENCLOITRE"]
["RYTHM' & GYM' CHAMPIGNY LE SEC","18086.084","RaG","POITOU CHARENTES","VIENNE","CHAMPIGNY LE SEC"]
["VIENNE GYM","18086.089","VIENNE GYM","POITOU CHARENTES","VIENNE","POITIERS"]
["CLUB MARIGNANAIS DES SPORTS DE GYMNASTIQUE","19013.001","C.M.S. MARIGNANE","PROVENCE ALPES COTE D AZUR","BOUCHES DU RHONE","MARIGNANE"]
["GYMNASTIQUE CLUB MIRAMAS","19013.052","G.C. MIRAMAS","PROVENCE ALPES COTE D AZUR","BOUCHES DU RHONE","MIRAMAS"]
["ENTENTE NOTRE DAME DU MONT","19013.097",null,"PROVENCE ALPES COTE D AZUR","BOUCHES DU RHONE","MARSEILLE"]
["GYMNASTIQUE DU PAYS D'AIX EN PROVENCE","19013.166","GPA","PROVENCE ALPES COTE D AZUR","BOUCHES DU RHONE","AIX EN PROVENCE"]
["CLUB GYMNIQUE SAINT MAXIMINOIS","19083.024","C.G.S.M","PROVENCE ALPES COTE D AZUR","VAR","ST MAXIMIN LA STE BAUME"]
["HYERES GYM","19083.031","HYERES GYM","PROVENCE ALPES COTE D AZUR","VAR","HYERES"]
["GYM 2000 LA FARLEDE","19083.088","GYM 2000 LA FARLEDE","PROVENCE ALPES COTE D AZUR","VAR","LA FARLEDE"]
["ASSOCIATION LES PITCHOUNS DE CARCES","19083.101","Les Pitchouns","PROVENCE ALPES COTE D AZUR","VAR","CARCES"]
["ACRO TRAMP SAINT MAXIMIN SEILLONS","19083.110","ATSM","PROVENCE ALPES COTE D AZUR","VAR","SAINT MAXIMIN LA SAINTE BAUME - SEILLONS"]
["CLUB L'ISLOIS DE GYMNASTIQUE","19084.064","C.L.G","PROVENCE ALPES COTE D AZUR","VAUCLUSE","L ISLE SUR LA SORGUE"]
["LES ECUR.CRITOURIENS","20009.010","LES ECUR.CRITOURIENS","MIDI PYRENEES","ARIEGE","LA TOUR DU CRIEU"]
["COQUELICOT TOULOUSE GYM","20031.012","C. T. GYM","MIDI PYRENEES","HAUTE GARONNE","TOULOUSE"]
["ETOILE GYMNIQUE DE COLOMIERS","20031.035","E.G.COLOMIERS","MIDI PYRENEES","HAUTE GARONNE","COLOMIERS"]
["ELAN GYMNIQUE","20031.049","ELAN GYMNIQUE","MIDI PYRENEES","HAUTE GARONNE","BLAGNAC"]
["PORTET GYM","20031.099","PORTET GYM","MIDI PYRENEES","HAUTE GARONNE","PORTET SUR GARONNE"]
["Association Sportive Fleurance Gym","20032.084","AS Fleurance Gym","MIDI PYRENEES","GERS","FLEURANCE"]
["LA BIGOURDANE TARBES","20065.023","LA BIGOURDANE TARBES","MIDI PYRENEES","HAUTES PYRENEES","TARBES"]
["SALTO ALBIGEOIS","20081.003","SALTO ALBIGEOIS","MIDI PYRENEES","TARN","ALBI"]
["LA NANTAISE","21044.012","LA NANTAISE","PAYS DE LA LOIRE","LOIRE ATLANTIQUE","NANTES"]
["ANGERS GYMNASTIQUE","21049.077","ANGERS GYMNASTIQUE","PAYS DE LA LOIRE","MAINE ET LOIRE","ANGERS"]
["A.S.P.C. GYM'SPORT","21049.082","A.S.PONTS DE CE","PAYS DE LA LOIRE","MAINE ET LOIRE","LES PONTS DE CE"]
["SAUMUR LOIRE ALLIANCE GYMNIQUE","21049.102","SLAG","PAYS DE LA LOIRE","MAINE ET LOIRE","SAUMUR"]
["UNION SPORTIVE LAVALLOISE","21053.073","UNION SPORTIVE LAVAL","PAYS DE LA LOIRE","MAYENNE","LAVAL"]
["GYM CLUB SUZERAIN","21072.011","GYM CLUB SUZERAIN","PAYS DE LA LOIRE","SARTHE","LA SUZE SUR SARTHE"]
["AVANT GARDE DU MANS","21072.041","AVANT GARDE DU MANS","PAYS DE LA LOIRE","SARTHE","LE MANS"]
["A S C A","21072.054","A S C A","PAYS DE LA LOIRE","SARTHE","LA CHAPELLE ST-AUBIN"]
["LA FONTENAISIENNE","21085.013","LA FONTENAISIENNE","PAYS DE LA LOIRE","VENDEE","FONTENAY LE COMTE"]
["BEAUSEJOUR LES SABLES","21085.018","BEAUSEJOUR LES SABLES","PAYS DE LA LOIRE","VENDEE","LES SABLES D'OLONNE"]
["E.S.M. GYM CHALLANS","21085.048","E.S.M. GYM CHALLANS","PAYS DE LA LOIRE","VENDEE","CHALLANS"]
["GYMNASTIQUE CLUB LA ROCHE SUR YON","21085.099","G C R Y","PAYS DE LA LOIRE","VENDEE","ROCHE SUR YON"]
["LA CELLE SAINT CLOUD GYM","23078.003","LA CELLE ST CLOUD-LCSCG","ILE DE FRANCE OUEST","YVELINES","LA CELLE SAINT CLOUD"]
["CLUB SPORTIF MUNICIPAL DE GYMNASTIQUE EPINAY SOUS SENART","23091.104","EPINAY SS SENART-CSMG","ILE DE FRANCE OUEST","ESSONNE","EPINAY SOUS SENART"]
["ENTENTE GYMNIQUE ETAMPES","23091.105","ETAMPES-EGE","ILE DE FRANCE OUEST","ESSONNE","ETAMPES"]
["SPORTING CLUB DE LIMOURS GYMNASTIQUE","23091.107","LIMOURS-SCLG","ILE DE FRANCE OUEST","ESSONNE","LIMOURS"]
["TRICOLORE SPORTIVE DE MASSY","23091.110","MASSY-TSM","ILE DE FRANCE OUEST","ESSONNE","MASSY"]
["ASSOCIATION GYMNIQUE BREUILLETOISE","23091.135","BREUILLET-AGB","ILE DE FRANCE OUEST","ESSONNE","BREUILLET"]
["GYMNASTIQUE CLUB MENNECY","23091.152","MENNECY-GCM","ILE DE FRANCE OUEST","ESSONNE","MENNECY"]
["DRAVEIL TEAM TUMBLING - GYMNASTIQUE","23091.183","DRAVEIL-DTTG","ILE DE FRANCE OUEST","ESSONNE","DRAVEIL"]
["UNION SPORTIVE MUNICIPALE MALAKOFF","23092.209","MALAKOFF-USMM","ILE DE FRANCE OUEST","HAUTS DE SEINE","MALAKOFF"]
["ALBONAISE GYMNASTIQUE","23095.301","FRANCONVILLE-AG","ILE DE FRANCE OUEST","VAL D'OISE","FRANCONVILLE"]
["ETOILE GOUSSAINVILLOISE","23095.303","GOUSSAINVILLE-EG","ILE DE FRANCE OUEST","VAL D'OISE","GOUSSAINVILLE"]
["LES ECUREUILS DE SAINT PRIX","23095.330","ST PRIX-ESP","ILE DE FRANCE OUEST","VAL D'OISE","SAINT PRIX"]
["EN AVANT ! DE PARIS","24075.004","EN AVANT DE PARIS","ILE DE FRANCE MARNE","PARIS","PARIS"]
["MEAUX GYMNASTIQUE","24077.110","MEAUX GYMNASTIQUE","ILE DE FRANCE MARNE","SEINE ET MARNE","MEAUX"]
["CLUB ATHLETIQUE COMBS LA VILLE GYMNASTIQUE","24077.128","CA COMBS LA VILLE GYM","ILE DE FRANCE MARNE","SEINE ET MARNE","COMBS LA VILLE"]
["ASSOCIATION GYMNIQUE DE CESSON VERT ST DENIS","24077.130","AG CESSON VERT ST D.","ILE DE FRANCE MARNE","SEINE ET MARNE","CESSON VERT SAINT DENIS"]
["ESPOIR GYMNIQUE DE BRIE COMTE ROBERT","24077.178","EG BRIE COMTE ROBERT","ILE DE FRANCE MARNE","SEINE ET MARNE","BRIE COMTE ROBERT"]
["LES AMIS GYMNASTES D'AULNAY /BOIS","24093.331","AG AULNAY /BOIS","ILE DE FRANCE MARNE","SEINE SAINT DENIS","AULNAY SOUS BOIS"]
["CLUB GYMNIQUE DE NEUILLY SUR MARNE","24093.341","CG NEUILLY/MARNE","ILE DE FRANCE MARNE","SEINE SAINT DENIS","NEUILLY SUR MARNE"]
["STADE OLYMPIQUE DE ROSNY SOUS BOIS","24093.346","SO ROSNY SOUS BOIS","ILE DE FRANCE MARNE","SEINE SAINT DENIS","ROSNY SOUS BOIS"]
["ESPERANCE DE FONTENAY SOUS BOIS","24094.564","ESPERANCE FONTENAY","ILE DE FRANCE MARNE","VAL DE MARNE","FONTENAY SOUS BOIS"]
["CLUB SPORTIF ET ATHLETIQUE DU KREMLIN BICETRE","24094.567","CSA KREMLIN-BICETRE","ILE DE FRANCE MARNE","VAL DE MARNE","LE KREMLIN BICETRE"]
["GYM CLUB DU PERREUX","24094.584","GC LE PERREUX","ILE DE FRANCE MARNE","VAL DE MARNE","LE PERREUX"]
["BASTIA TEAM GYM","25020.022",null,"CORSE","CORSE","BASTIA"]
["FLAMBOYANT GYM CLUB","27990.002","FLAMBOYANT GYM CLUB","NOUVELLE CALEDONIE","NOUVELLE CALEDONIE","NOUMEA"]
["LICENCES INDIVIDUELLES FFG","40995.000","LICENCES INDIVIDUELLES","FFG","LICENCE INDIVIDUELLE FFG","PARIS"]

{"sheet":"liste","index":14,"n_rows":21,"n_cols":12,"rows_kept":21,"hidden":true}
[]
["Découverte",1,null,"Top7","Junior",1]
["Evolution",1,"Adulte","Loisir1","Senior",2,null,"Découverte","Evolution","Détente","Passion","Europe"]
["Détente",2,"Féminine","Loisir2",null,3,null,"Féminine","Féminine","Féminine","Unique","Féminine"]
["Passion",2,"Masc/Mix",null,null,4,null,"Masc/Mix","Masc/Mix","Masc/Mix",null,"Masculine"]
["Europe",2,"Unique",{"$nulls":4},"Adulte","Adulte",null,null,"Mixte"]
[null,3]
[null,3,null,null,{"$f":"INDIRECT(A2)","v":{"$error":"#VALUE!"}}]
[null,3,"Féminine"]
[null,4,"Masculine"]
["Catégorie",5,"Mixte"]
["Découverte"]
["Evolution"]
["Détente"]
["Passion"]
[]
[]
[null,null,1]
[null,null,2]
[null,null,3]
[null,null,4]

{"sheet":"Activer Macro 97-2003","index":15,"n_rows":71,"n_cols":1,"rows_kept":71}
["pour activer les macros :"]
[]
["en résumé : menu Excel ->"]
["Outils > Macros > Sécurité > cocher niveau sécurité moyen"]
[]
["en images:"]
{"$rows_empty":32}
[-2]
{"$rows_empty":19}
["(3) important : fermer le fichier, puis l'ouvrir à nouveau et cliquer \"Activer les Macros\" à la question suivante"]
{"$rows_empty":8}
["= mise en garde de Microsoft à ne pas négliger :"]
["Les macros peuvent contenir des virus. Il est généralement plus prudent de les désactiver. Toutefois, si elles proviennent d'une source sûre, le fait de les désactiver vous empêchera d'avoir accès à toutes les fonctionnalités. "]
[]
["les macros sont activées !"]

{"sheet":"Activer Macro2007","index":16,"n_rows":30,"n_cols":2,"rows_kept":30}
{"$rows_empty":29}
[null,"fermer le fichier, puis l'ouvrir à nouveau "]

{"sheet":"SOL Explications","index":17,"n_rows":22,"n_cols":9,"rows_kept":22,"merged":[[0,1,0,11],[1,1,1,11],[2,1,2,11],[17,1,18,4],[17,8,18,11],[21,5,28,7]]}
[null,"FEUILLES DE DIFF SOL - \n"]
[null,"La feuille a été modifiée pour que les juges de composition voit les données pour mieux juger. Sur cette page vous avez tout pour construire votre sol."]
[null,"Sélectionnez les objets et déplacez les sur les carrés blancs pour contruire votre formation et/ou indiquez les exigences de composition."]
{"$rows_empty":14}
[null,"FEDERAL",{"$nulls":6},"PERFORMANCE"]
[]
[]
[]
[{"$nulls":5},"Ce sont des listes, il faut choisir saut/pivots/maintien sur chaque formation"]

{"sheet":"Explications","index":18,"n_rows":49,"n_cols":4,"rows_kept":49,"merged":[[1,3,2,9],[3,3,3,9],[5,1,5,10],[6,1,6,10],[7,1,7,11],[8,1,8,11],[9,1,9,10],[10,1,10,10],[12,1,12,10],[14,1,14,10],[16,1,16,10],[17,1,17,10],[19,1,19,10],[21,1,21,10],[22,1,22,10],[23,1,23,10],[24,1,24,10],[25,1,25,10],[26,1,26,10],[29,1,29,10],[33,1,33,10],[34,1,34,10],[36,1,36,10],[41,1,41,10],[43,1,43,10],[44,1,44,10]]}
[]
[{"$nulls":3},"FEUILLES DE DIFF - MODE D'EMPLOI"]
[]
[{"$nulls":3},"V1.0"]
[]
[null,"Cet onglet permet de vous expliquer chaque étape de cet outil. "]
[null,"Comment activer les macros"]
[null,"Allez sur les onglets en fonction de votre version, ou regardez sur internet"]
[]
[null,"Explication des onglets"]
{"$rows_empty":31}
[null,"Utilisation de MAV"]
[null,"N'enregistrez pas le fichier au format par défaut, forcez le au format excel (.xlsm per ex)"]
[]
[null,"Un problème  : teamgymhelp@gmail.com"]
[null,"Une adresse de support a été créée afin de vous permettre d'envoyer les problèmes que vous rencontrerez:"]
[null,"Si vous rencontrez un problème envoyez un mail à cette adresse, en expliquant le problème que vous rencontrez, la saisie et les actions que vous avez effectuées. "]
[null,"Vous pouvez joindre aussi le fichier qui pose problème en précisant la version excel que vous utilisez."]
[null,"Plus vous serez explicite dans la description du problème, plus nous serons à même de vous aider."]

{"sheet":"fiche engagement","index":19,"n_rows":46,"n_cols":8,"rows_kept":46,"merged":[[0,0,0,5],[1,0,1,5],[2,0,2,5],[3,0,3,5],[4,0,4,5],[5,0,5,5],[6,0,6,1],[6,2,6,3],[8,0,8,1],[10,0,10,1],[12,2,14,4],[15,0,15,1],[15,2,15,4],[17,1,17,4],[19,2,19,4],[21,1,21,4],[23,3,23,4],[27,1,29,1],[27,2,29,2],[27,3,29,3],[27,4,29,4],[27,5,29,5]]}
["Fiche d'engagement Compétition TeamGym - SAISON 2018 - 2019 V1.0"]
["ENGAGEMENT EN LIGNE AU FORMAT EXCEL - PAS DE PDF/SCAN"]
["Remplir une feuille par équipe de compétition et remplissez toutes les cases."]
["Les cases grises sont des listes déroulantes."]
["Les cases bleues sont des zones de texte à compléter"]
["Les cases roses sont remplies automatiquement"]
["Help",null,"teamgymhelp@gmail.com"]
[]
["Catégories:",null,null,"Finale:"]
[]
["Section:",null,null,"Equipe numéro :"]
[]
[]
[]
["Nom de l'association :"]
["Code Informatique:",null,{"$f":"IF(H16=0,\" \",INDEX('FFGym Clubs'!C3:C257,H16))","v":" "},{"$nulls":4},{"$f":"SUM(('FFGym Clubs'!A2:A257=$C$13)*('FFGym Clubs'!B2:B257))","v":0}]
[]
["Ville :",{"$f":"IF(H16=0,\" \",INDEX('FFGym Clubs'!D3:D257,'fiche engagement'!H16))","v":" "}]
[]
["Correspondant Nom/Prénom :"]
[]
["Adresse :"]
[]
["Code postal :",null,"Mail:"]
[]
["Tel",null,"Fax"]
[]
[null,"Nom","Prénom","Numéro de licence \n(5 derniers chiffres)","Année de naissance","Niv."]
[{"$nulls":4},"de "]
[{"$nulls":3},"(5 derniers chiffres)","naissance"]
["Juge"]
["Entraineur"]
[1]
[2]
[3]
[4]
[5]
[6]
[7]
[8]
[9]
[10]
[11]
[12]
[]
["Fait le",null,"Cachet du club","Signature du président"]

{"sheet":"FED Dif Sol","index":20,"n_rows":17,"n_cols":18,"rows_kept":17,"merged":[[0,4,1,6],[0,7,1,7],[0,8,1,9],[0,10,1,15],[1,17,1,19],[2,1,2,3],[2,4,2,6],[2,7,2,9],[2,10,2,12],[2,13,2,15],[3,1,3,3],[3,4,3,6],[3,7,3,9],[3,10,3,12],[3,13,3,15],[4,0,6,0],[5,17,5,19],[7,1,7,3],[7,4,7,6],[7,7,7,9],[7,10,7,12],[7,13,7,15],[8,1,8,3],[8,4,8,6],[8,7,8,9],[8,10,8,12],[8,13,8,15],[9,0,11,0],[12,1,12,3],[12,4,12,6],[12,7,12,9],[12,10,12,12],[12,13,12,15],[13,1,13,3],[13,4,13,6],[13,7,13,9],[13,10,13,12],[13,13,13,15],[14,0,16,0]]}
[{"$nulls":4},"NOMBRE DE GYM:",null,null,{"$f":"COUNTA('fiche engagement'!B33:B44)","v":0},"Equipe:",null,{"$f":"CONCATENATE(INDEX('FFGym Clubs'!D3:D257,'fiche engagement'!H16),\" - Equipe N°\",'fiche engagement'!E11)","v":{"$error":"#VALUE!"}}]
[{"$nulls":16},{"$f":"'fiche engagement'!C9","v":0},"Exigences de composition"]
[null,"Formation",null,null,"Formation",null,null,"Formation",null,null,"Formation",null,null,"Formation"]
[]
["DIFF","SAUT","PIVOTS","MAINTIEN"]
[null,"TOUT","TOUT","TOUT",{"$nulls":13},"Gymnastes"]
[null,"Combinaison",null,null,"Combinaison",null,null,"Combinaison",null,null,"Combinaison",null,null,"Combinaison"]
[null,"Formation",null,null,"Formation",null,null,"Formation",null,null,"Formation",null,null,"Formation"]
[]
["DIFF"]
[]
[null,"Combinaison",null,null,"Combinaison",null,null,"Combinaison",null,null,"Combinaison",null,null,"Combinaison"]
[null,"Formation",null,null,"Formation",null,null,"Formation",null,null,"Formation",null,null,"Formation"]
[]
["DIFF"]
[]
[null,"Combinaison",null,null,"Combinaison",null,null,"Combinaison",null,null,"Combinaison",null,null,"Combinaison"]

{"sheet":"PERF Dif Sol","index":21,"n_rows":17,"n_cols":18,"rows_kept":17,"merged":[[0,4,1,6],[0,7,1,7],[0,8,1,9],[0,10,1,15],[1,17,1,19],[2,1,2,3],[2,4,2,6],[2,7,2,9],[2,10,2,12],[2,13,2,15],[3,1,3,3],[3,4,3,6],[3,7,3,9],[3,10,3,12],[3,13,3,15],[4,0,6,0],[5,17,5,19],[7,1,7,3],[7,4,7,6],[7,7,7,9],[7,10,7,12],[7,13,7,15],[8,1,8,3],[8,4,8,6],[8,7,8,9],[8,10,8,12],[8,13,8,15],[9,0,11,0],[12,1,12,3],[12,4,12,6],[12,7,12,9],[12,10,12,12],[12,13,12,15],[13,1,13,3],[13,4,13,6],[13,7,13,9],[13,10,13,12],[13,13,13,15],[14,0,16,0]]}
[{"$nulls":4},"NOMBRE DE GYM:",null,null,{"$f":"COUNTA('fiche engagement'!B33:B44)","v":0},"Equipe:",null,{"$f":"CONCATENATE(INDEX('FFGym Clubs'!D3:D257,'fiche engagement'!H16),\" - Equipe N°\",'fiche engagement'!E11)","v":{"$error":"#VALUE!"}}]
[{"$nulls":16},{"$f":"'fiche engagement'!C9","v":0},"Exigences de composition"]
[null,"Formation",null,null,"Formation",null,null,"Formation",null,null,"Formation",null,null,"Formation"]
[]
["DIFF","SAUT","PIVOTS","MAINTIENT"]
[null,"E de FORCE","TOUT","TOUT",{"$nulls":13},"Gymnastes"]
[null,"Combinaison","SAUT ou PIVOTS",null,"Combinaison",null,null,"Combinaison",null,null,"Combinaison",null,null,"Combinaison"]
[null,"Formation",null,null,"Formation",null,null,"Formation",null,null,"Formation",null,null,"Formation"]
[]
["DIFF"]
[]
[null,"Combinaison",null,null,"Combinaison",null,null,"Combinaison",null,null,"Combinaison",null,null,"Combinaison"]
[null,"Formation",null,null,"Formation",null,null,"Formation",null,null,"Formation",null,null,"Formation"]
[]
["DIFF"]
[]
[null,"Combinaison",null,null,"Combinaison",null,null,"Combinaison",null,null,"Combinaison",null,null,"Combinaison"]

{"sheet":"dif tumbling","index":22,"n_rows":41,"n_cols":14,"rows_kept":41,"merged":[[0,1,0,2],[1,1,1,2],[2,1,2,2],[3,1,3,2],[4,1,4,2],[5,1,5,2],[6,1,6,2],[7,1,7,2],[8,1,8,2],[9,1,9,2],[10,1,10,2],[11,1,11,2],[11,8,11,9],[12,1,12,2],[13,2,13,9],[15,2,15,8],[16,2,21,8],[22,2,22,8],[25,2,25,8],[26,2,26,8],[27,2,27,8],[28,2,28,8],[29,2,29,8],[30,2,30,8],[31,2,31,8],[34,2,34,8],[35,2,35,8],[36,2,36,8],[37,2,37,8],[38,2,38,8],[39,2,39,8],[40,2,40,8]]}
[null,"Difficultés",null,"Passion","Détente","Evolution","Découverte",{"$nulls":4},"Case option pour les series avant arriere"]
["Av","Roulade avant",{"$nulls":3},"0.3","0.5",{"$nulls":4},1,2,2]
["Avt  \nArr","Roue",null,null,"0.5","0.5",1]
["Arr","Roue pied pied",null,null,"0.5","0.5",1,{"$nulls":4},{"$f":"'fiche engagement'!C9","v":0}]
["Arr","Rondade",null,null,"0.5",1,"1.5"]
["Avt","Saut de mains",null,"0.3",1,"1.5",2,null,"1/2 vrille",0.2]
["Avt","Saut de mains un pied",null,"0.3",1,"1.5",2,"TOTAL","carpé",0.1]
["Avt","Flip avant",null,"0.7","1.2",null,null,"DIFF / 6","tendu",0.2]
["Arr","Flip arrière",null,"0.3",1,"1.5",2,{"$f":"(J23+J32+J41)","v":0},"double",1]
["Avt","Salto en avant",null,1,"1.4",2,null,null,"Salto salto",0.2]
["Arr","Salto en arrière",null,1,"1.4",2,null,null,"salto au départ",0.1]
["Avt","Saut de mains Salto",null,"1.5","1.6",null,null,"Catégorie:",{"$f":"CONCATENATE('fiche engagement'!C9,\" \", 'fiche engagement'!C11,\" \", 'fiche engagement'!E9)","v":"  "}]
["Avt","Flip avant Salto",null,"1.6","1.8"]
[null,"Equipe",{"$f":"CONCATENATE(INDEX('FFGym Clubs'!D3:D257,'fiche engagement'!H16),\" - Equipe N°\",'fiche engagement'!E11)","v":"FRANCONVILLE - Equipe N°"}]
[null,"1er Passage"]
["N°","Nom du gym",{"$nulls":7},"Valeur"]
[1]
[2]
[3]
[4]
[5]
[6]
[null,null,"Moyenne du passage : ",{"$nulls":6},{"$f":"ROUND(SUM(J17:J22)/6,1)","v":0}]
[null,"2ème Passage"]
["N°","Nom du gym",{"$nulls":7},"Valeur"]
[1]
[2]
[3]
[4]
[5]
[6]
[null,null,"Moyenne du passage : ",{"$nulls":6},{"$f":"IF(J26<>\"\",ROUND(AVERAGE(J26:J31),1),0)","v":0}]
[null,"3ème Passage"]
["N°","Nom du gym",{"$nulls":7},"Valeur"]
[1]
[2]
[3]
[4]
[5]
[6]
[null,null,"Moyenne du passage : ",{"$nulls":6},{"$f":"IF(J35<>\"\",ROUND(AVERAGE(J35:J40),1),0)","v":0}]

{"sheet":"dif mini tramp","index":23,"n_rows":41,"n_cols":14,"rows_kept":41,"merged":[[0,1,0,2],[1,1,1,2],[2,1,2,2],[3,1,3,2],[4,1,4,2],[5,1,5,2],[6,1,6,2],[6,8,6,9],[7,1,7,2],[8,1,8,2],[9,1,9,2],[10,1,10,2],[11,1,11,2],[12,1,12,2],[12,8,12,9],[13,2,13,9],[15,2,15,8],[16,2,21,8],[24,2,24,5],[24,6,24,8],[25,2,25,8],[26,2,26,8],[27,2,27,8],[28,2,28,8],[29,2,29,8],[30,2,30,8],[33,2,33,5],[33,6,33,8],[34,2,34,8],[35,2,35,8],[36,2,36,8],[37,2,37,8],[38,2,38,8],[39,2,39,8]]}
[null,"Difficulté",null,"Passion","Détente","Evolution","Découverte"]
[null,"Saut pose de pieds + saut droit",{"$nulls":9},1,2,2]
[null,"Roue/Rondade"]
[null,"Rondade",null,"0.5",1,{"$nulls":6},{"$f":"'fiche engagement'!$C$9","v":0}]
[null,"Lune",null,1,"1.6"]
[null,"Rondade demi -Pétrick",null,"0.7","1.2"]
[null,"Lune vrille",null,"1.6",2,{"$nulls":3},"Valorisation"]
[null,"Tsukahara",null,"1.6",{"$nulls":3},"TOTAL","1/2 vrille",0.2]
[null,"Lune salto",null,"1.8",{"$nulls":3},"DIFF / 6","carpé",0.1]
[null,"Saut droit",{"$nulls":3},1,"1.2",{"$f":"J23+J32+J41","v":0},"tendu",0.2]
[null,"Saut groupé",{"$nulls":3},1,"1.5",null,"double",1]
[null,"Saut écart carpé",null,null,1,"1.3","1.8"]
[null,"Salto",null,1,"1.4","1.8",2,"Catégorie ",{"$f":"CONCATENATE('fiche engagement'!C9,\" \", 'fiche engagement'!C11,\" \", 'fiche engagement'!E9)","v":"  "}]
[null,"Equipe ",{"$f":"CONCATENATE(INDEX('FFGym Clubs'!D3:D257,'fiche engagement'!H16),\" - Equipe N°\",'fiche engagement'!E11)","v":"FRANCONVILLE - Equipe N°"}]
[null,"1er Passage"]
["N°","Nom du gym"]
[1]
[2]
[3]
[4]
[5]
[6]
[{"$nulls":8},"Moyenne du passage : ",{"$f":"ROUND(SUM(J17:J22)/6,1)","v":0}]
[null,"2ème Passage"]
["N°","Nom du gym"]
[1]
[2]
[3]
[4]
[5]
[6]
[{"$nulls":8},"Moyenne du passage : ",{"$f":"IF(J26=\"\",0,ROUND(AVERAGE(J26:J31),1))","v":0}]
[null,"3ème Passage"]
["N°","Nom du gym"]
[1]
[2]
[3]
[4]
[5]
[6]
[{"$nulls":9},{"$f":"IF(J35=\"\",0,ROUND(AVERAGE(J35:J40),1))","v":0}]